Workbook

Sheet Information
A8: Fachverband Hotellerie
A12: Fragenkatalog für Mystery Guest-Check
A13: (Information)
A25: Arbeitsunterlage, 13.10.2010 | B25: Arbeitsunterlage 2025-2030
B36: Die vorliegende Arbeitsunterlage ermöglicht Ihnen - unabhängig von Konzept und Positionierung des zu prüfenden Betriebes - eine Auswahl des passenden Fragenkataloges je nach Angebot.
B48: Rückfragehinweis:
B49: Mag. Maria Schreiner/ Mag. Maria Dinböck
B50: Fachverband Hotellerie
B51: Wiedner Hauptstraße 63
B52: 1045 Wien
B53: T: 0590900/3554 F: 0590900/3568
B54: E: hotels@wko.at
B57: Wien, 01.01.2026

Sheet Varianten
A8: Fachverband Hotellerie
A12: Fragenkatalog für Mystery Guest-Check
A13: (Varianten)
A25: Arbeitsunterlage 2025-2030
A36: Variante | B36: Anzahl Kriterien | C36: Max. Gesamtsumme
A37: ohne Zusatzangebot | B37: 358 | C37: 2506
A39: inkl. 3 Modulen/gesamt | B39: 422 | C39: 2954
A40: inkl. Spa und Freizeit | B40: 401 | C40: 2807
A41: inkl. Freizeit und Tagung | B41: 399 | C41: 2793
A42: inkl. Tagung und Spa | B42: 402 | C42: 2814
A43: inkl. Spa | B43: 381 | C43: 2667
A44: inkl. Freizeit | B44: 378 | C44: 2646
A45: inkl. Tagung | B45: 379 | C45: 2653
A58: Rückfragehinweis:
A59: Mag. Maria Schreiner | Mag. Maria Dinböck
A60: Fachverband Hotellerie
A61: Wiedner Hauptstraße 63
A62: 1045 Wien
A63: T: 0590900/3554 F: 0590900/3568
A64: E: hotels@wko.at
A67: Wien, 01.01.2026

Sheet gesamt
C7: Fachverband Hotellerie
C11: Fragenkatalog für Mystery Guest-Check
C18: Arbeitsunterlage 2025-2030
C24: Dies ist die Auflistung der erforderlichen Prüfkriterien für Firmen, die einen Mystery-Test im Rahmen der Österreichischen Hotelklassifizierung durchführen. Über die Listung einer Firma entscheidet die Lenkungskommission bzw. der Fachverband Hotellerie nach Prüfung der Voraussetzungen.
C27: Bewertung
C29: ja / überdurchschnittlich erfülltes Kriterium | D29: 7
C30: gut bis sehr gut erfülltes Kriterium | D30: 6
C31: erfülltes Kriterium | D31: 5
C32: mittelmäßig erfülltes Kriterium | D32: 4
C33: teilweise erfülltes Kriterium | D33: 3
C34: zu kleinen Teilen erfülltes Kriterium | D34: 2
C35: nein / negativ erfülltes Kriterium | D35: 1
C38: Gesamtbewertung des Betriebs
C63: 1. Web-Auftritt
E64: Bewertung | F64: Kommentar
A65: 1 | B65: 1 | C65: Nachvollziehbare bzw. leicht auffindbare Webadresse | D65: 7 | E65: ja/nein
A66: 2 | B66: 2 | C66: Funktionieren alle Links | D66: 7 | E66: ja/nein
A67: 3 | B67: 3 | C67: Übersichtlichkeit, Struktur | D67: 7 | E67: 1-7
A68: 4 | B68: 4 | C68: Such-Funktion | D68: 7 | E68: ja/nein
A69: 5 | B69: 5 | C69: Integriertes Gästefeedback | D69: 7 | E69: ja/nein
A70: 6 | B70: 6 | C70: Verständlichkeit des Inhalts | D70: 7 | E70: ja/nein
A71: 7 | B71: 7 | C71: Aussagekräftiger, realistischer Auftritt mit Hotelbildern | D71: 7 | E71: ja/nein
A72: 8 | B72: 8 | C72: Aktualität (inkl. Kernöffnungszeiten Rezeption (1*-3*), wenn auf Buchungsbestätigung nicht angegeben; Öffnungstage Restaurant (1*-4* verpflichtend) sowie Öffnungszeiten der Sport-/Erholungs- und Wellnessbereich) | D72: 7 | E72: ja/nein
A73: 9 | B73: 9 | C73: Impressum | D73: 7 | E73: ja/nein
A74: 10 | B74: 10 | C74: Übersetzung in mindestens eine Fremdsprache (ab 1* verpflichtend) - automatische Übersetzung genügt | D74: 7 | E74: ja/nein
A75: 11 | B75: 11 | C75: Kontaktangabe (Email, Telefon, etc.) | D75: 7 | E75: ja/nein
A76: 12 | B76: 12 | C76: Online-Buchbarkeit auf eigener Website - benutzerfreundlich? | D76: 7 | E76: ja/nein
A77: 13 | B77: 13 | C77: Anfahrtsplan und Informationen über öffentliche Verkehrsanbindungen bzw. Transfermöglichkeiten | D77: 7 | E77: ja/nein
A78: 14 | B78: 14 | C78: Allgemeinen Geschäftsbedingungen, Stornobedingungen vorhanden | D78: 7 | E78: ja/nein
A79: 15 | B79: 15 | C79: Mobile Version der Website oder mobile Applikation | D79: 7 | E79: ja/nein
C80: Bewertung | D80: =SUM(D65:D79) -> 105
C81: Durchschnitt | D81: =SUM(D80/B79) -> 7
C83: Kommentar
C86: 2. E-Mail
C88: Beantwortung Ihrer E-Mail Anfrage, | E88: Bewertung | F88: Kommentar
A89: 16 | B89: 1 | C89: Innerhalb … Stunden ab Anfrage (3*S - 12; 4*S - 8; 5*/5*S - 4) | D89: 7 | E89: ja/nein
A90: 17 | B90: 2 | C90: Qualität (Schreibstil, Wortwahl, korrekte Anrede, Rechtsschreibung) | D90: 7 | E90: 1-7
A91: 18 | B91: 3 | C91: Informationsgehalt (z.B. Zusatzangebote) | D91: 7 | E91: 1-7
A92: 19 | B92: 4 | C92: Individuelle Bearbeitung von Sonderanfragen | D92: 7 | E92: 1-7
A93: 20 | B93: 5 | C93: Bei Angebot: Angaben zu Stornobedingungen | D93: 7 | E93: ja/nein
A94: 21 | B94: 6 | C94: Angabe von Zahlungsmodalitäten | D94: 7 | E94: ja/nein
A95: 22 | B95: 7 | C95: Anfahrts-, Wegbeschreibung, öffentliche Anreisemöglichkeiten | D95: 7 | E95: ja/nein
C96: Reservierungs-Bestätigung (E-Mail, Fax) als Antwort auf Ihre Buchung | F96: Kommentar
A97: 23 | B97: 8 | C97: Innerhalb … Stunden ab Reservierung (3*S - 24; 4*S - 12; 5*/5*S - 8) | D97: 7 | E97: ja/nein
A98: 24 | B98: 9 | C98: Qualität (Schreibstil, Wortwahl, korrekte Anrede, Rechtsschreibung) | D98: 7 | E98: 1-7
A99: 25 | B99: 10 | C99: Informationsgehalt (u.a. Aktuelle Anfahrtsbeschreibung) | D99: 7 | E99: 1-7
C100: Bewertung | D100: =SUM(D87:D99) -> 70
C101: Durchschnitt | D101: =SUM(D100/B99) -> 7
C103: Kommentar
C106: 3. Telefon
E107: Bewertung | F107: Kommentar
A108: 26 | B108: 1 | C108: Wartezeit (3*S - 1 Min; 4*S - 30 Sek; 5*/5*S - 15 Sek) | D108: 7 | E108: ja/nein
A109: 27 | B109: 2 | C109: Während der Wartezeit Text- bzw. Tonschleife | D109: 7 | E109: ja/nein
A110: 28 | B110: 3 | C110: Herzlichkeit | D110: 7 | E110: 1-7
A111: 29 | B111: 4 | C111: Klare deutliche Stimme und verständliche Aussprache | D111: 7 | E111: 1-7
A112: 30 | B112: 5 | C112: Anfragebeantwortung auf Deutsch (Rückruf ebenfalls aktzeptabel) | D112: 7 | E112: ja/nein
A113: 31 | B113: 6 | C113: Mit Namen angesprochen | D113: 7 | E113: ja/nein
A114: 32 | B114: 7 | C114: Vollständige Datenaufnahme (z.B. Name, Adresse, Tel, Email-Nachfrage) | D114: 7 | E114: ja/nein
A115: 33 | B115: 8 | C115: Fachliche Kompetenz | D115: 7 | E115: 1-7
A116: 34 | B116: 9 | C116: An- und Abreisedatum wiederholt und bestätigt | D116: 7 | E116: ja/nein
A117: 35 | B117: 10 | C117: Individuelle Bearbeitung von Sonderanfragen | D117: 7 | E117: 1-7
A118: 36 | B118: 11 | C118: Informationen über Check-in-Zeiten | D118: 7 | E118: ja/nein
A119: 37 | B119: 12 | C119: Aktives Anbieten von Zusatzleistungen | D119: 7 | E119: ja/nein
A120: 38 | B120: 13 | C120: Hinweis auf Stornobedingungen bei telefonischer Buchung | D120: 7 | E120: ja/nein
A121: 39 | B121: 14 | C121: Freundliche Verabschiedung und Dank | D121: 7 | E121: 1-7
C122: Bewertung | D122: =SUM(D108:D121) -> 98
C123: Durchschnitt | D123: =SUM(D122/B121) -> 7
C124: Kommentar
C126: 4. Anreise und Außenanlage
E127: Bewertung | F127: Kommentar
A128: 40 | B128: 1 | C128: Auffindbarkeit (z.B. Beschilderung im Ort) | D128: 7 | E128: 1-7
A129: 41 | B129: 2 | C129: Zufahrtsmöglichkeit bis zum Eingang | D129: 7 | E129: ja/nein
A130: 42 | B130: 3 | C130: Park- bzw. Garagenplätze (Zustand, Größe, ausreichende Anzahl etc.) | D130: 7 | E130: 1-7
A131: 43 | B131: 4 | C131: Beleuchtung des gesamten Außenbereichs inkl. Park- bzw. Garagenplätze | D131: 7 | E131: 1-7
A132: 44 | B132: 5 | C132: Gepäckservice | D132: 7 | E132: ja/nein
A133: 45 | B133: 6 | C133: Beschilderung am Haus (z.B. Eingang, Garage, Skikeller etc.) | D133: 7 | E133: 1-7
A134: 46 | B134: 7 | C134: Sauberkeit und Zustand des Gebäudes sowie der Außenanlagen | D134: 7 | E134: 1-7
A135: 47 | B135: 8 | C135: Parkservice (z.B. Doorman, Wagenmeister) | D135: 7 | E135: ja/nein
A136: 48 | B136: 9 | C136: Angebot zur leichteren Ermöglichung der öffentlichen Anreise (z.B. Transfer) | D136: 7 | E136: 1-7
C137: Bewertung | D137: =SUM(D128:D136) -> 63
C138: Durchschnitt | D138: =SUM(D137/B136) -> 7
C140: Kommentar
C143: 5. Check-In
C145: Eingangsbereich & Lobby | E145: Bewertung | F145: Kommentar
A146: 49 | B146: 1 | C146: Raumklima (Geruch) | D146: 7 | E146: 1-7
A147: 50 | B147: 2 | C147: Raumtemperatur | D147: 7 | E147: 1-7
A148: 51 | B148: 3 | C148: Beleuchtung ausreichend und ansprechend | D148: 7 | E148: 1-7
A149: 52 | B149: 4 | C149: Ambiente/Atmosphäre | D149: 7 | E149: 1-7
A150: 53 | B150: 5 | C150: Entsprechend qualitatives Mobiliar | D150: 7 | E150: 1-7
A151: 54 | B151: 6 | C151: Sauberkeit und Ordnung insb. Check-In-Bereich (Front Office) | D151: 7 | E151: ja/nein
A152: 55 | B152: 7 | C152: Stimmige Dekorationen | D152: 7 | E152: 1-7
A153: 56 | B153: 8 | C153: Großzügiger Sitzbereich für Gäste | D153: 7 | E153: ja/nein
C155: Front Office Mitarbeiter | E155: Bewertung | F155: Kommentar
A156: 57 | B156: 9 | C156: Anwesenheit | D156: 7 | E156: ja/nein
A157: 58 | B157: 10 | C157: Begrüßung (z.B. Welcome Drink) | D157: 7 | E157: ja/nein
A158: 59 | B158: 11 | C158: Herzlichkeit, Freundlichkeit | D158: 7 | E158: 1-7
A159: 60 | B159: 12 | C159: Erscheinungsbild Mitarbeiter (z.B. Uniform, Namensschild) | D159: 7 | E159: 1-7
A160: 61 | B160: 13 | C160: Fachkompetenz | D160: 7 | E160: 1-7
A161: 62 | B161: 14 | C161: Fremdsprachenkenntnisse (Deutsch + mind. eine Fremdsprache - ab 3* verpflichtend) | D161: 7 | E161: ja/nein
A162: 63 | B162: 15 | C162: Aufmerksamkeit, Sorgfältigkeit, Hilfsbereitschaft | D162: 7 | E162: 1-7
A163: 64 | B163: 16 | C163: Effizienz (Schnelligkeit, Flexibilität) | D163: 7 | E163: 1-7
A164: 65 | B164: 17 | C164: Klare, gut verständliche Aussprache | D164: 7 | E164: 1-7
A165: 66 | B165: 18 | C165: Gast mit Namen angesprochen | D165: 7 | E165: ja/nein
A166: 67 | B166: 19 | C166: Vorbereiteter Meldezettel | D166: 7 | E166: ja/nein
A167: 68 | B167: 20 | C167: Gepäcksservice angeboten | D167: 7 | E167: ja/nein
A168: 69 | B168: 21 | C168: Begleitung auf das Zimmer angeboten | D168: 7 | E168: ja/nein
A169: 70 | B169: 22 | C169: Allgemeine Haus-Informationen angeboten bzw. gegeben | D169: 7 | E169: ja/nein
A170: 71 | B170: 23 | C170: Angenehmen Aufenthalt gewünscht | D170: 7 | E170: ja/nein
C172: Begleitung zum Zimmer | E172: Bewertung | F172: Kommentar
A173: 72 | B173: 24 | C173: Erscheinungsbild des Mitarbeiters | D173: 7 | E173: 1-7
A174: 73 | B174: 25 | C174: Freundlichkeit, Konversation | D174: 7 | E174: 1-7
C176: Rooming | E176: Bewertung | F176: Kommentar
A177: 74 | B177: 26 | C177: Hinweis auf Hauptschalter (für Strom im Zimmer) | D177: 7 | E177: ja/nein
A178: 75 | B178: 27 | C178: Hinweis auf Heizung oder Klimaanlage | D178: 7 | E178: ja/nein
A179: 76 | B179: 28 | C179: Kommunikationsgerät (z.B. Telefon, Tablet, QR Code) (schriftliche Infos ausreichend) (3*-4* auf Wunsch, 5* auf dem Zimmer) | D179: 7 | E179: ja/nein
A180: 77 | B180: 29 | C180: Telefonverzeichnis bzw. -nummern (für Zimmerservice) - schriftliche Infos ausreichend | D180: 7 | E180: ja/nein
A181: 78 | B181: 30 | C181: Minibar oder Maxibar (bis 4*) (schriftliche Infos ausreichend) | D181: 7 | E181: ja/nein
A182: 79 | B182: 31 | C182: Safe (schriftliche Infos ausreichend) | D182: 7 | E182: ja/nein
A183: 80 | B183: 32 | C183: Wäsche-Service (schriftliche Infos ausreichend) | D183: 7 | E183: ja/nein
A184: 81 | B184: 33 | C184: Bügel-Service (schriftliche Infos ausreichend) | D184: 7 | E184: ja/nein
A185: 82 | B185: 34 | C185: Öffnungszeiten Restaurant, Bar, Sport-/ Erholungs- und/oder Wellnessbereich (schriftliche Infos ausreichend) | D185: 7 | E185: ja/nein
A186: 83 | B186: 35 | C186: Zeitangabe Frühstück (schriftliche Infos ausreichend) | D186: 7 | E186: ja/nein
A187: 84 | B187: 36 | C187: Rezeption 24 Std. erreichbar und … Std. besetzt (3*S - 8 bzw. 10; 4*S - 14; 5*/5*S - 24) | D187: 7 | E187: ja/nein
C188: Bewertung | D188: =SUM(D146:D187) -> 252
C189: Durchschnitt | D189: =SUM(D188/B187) -> 7
C191: Kommentar
C193: 6. Zimmer
C195: Erster Eindruck und Allgemeiner Charakter | E195: Bewertung | F195: Kommentar
A196: 85 | B196: 1 | C196: Raumklima (Frischer Geruch) | D196: 7 | E196: 1-7
A197: 86 | B197: 2 | C197: Angenehme Temperatur | D197: 7 | E197: 1-7
A198: 87 | B198: 3 | C198: Atmosphäre (Wohlfühlcharakter) | D198: 7 | E198: 1-7
A199: 88 | B199: 4 | C199: Geräuschpegel (Ruhe) | D199: 7 | E199: 1-7
A200: 89 | B200: 5 | C200: Entsprechendes Mobiliar | D200: 7 | E200: 1-7
A201: 90 | B201: 6 | C201: Sauberkeit | D201: 7 | E201: 1-7
A202: 91 | B202: 7 | C202: Willkommensbrief/-karte | D202: 7 | E202: ja/nein
A203: 92 | B203: 8 | C203: Willkommensgruß (z.B. Blumen, Obst, Konfekt…) | D203: 7 | E203: ja/nein
A204: 93 | B204: 9 | C204: Türschloss in einwandfreiem Zustand | D204: 7 | E204: ja/nein
C206: Das Bett | E206: Bewertung | F206: Kommentar
A207: 94 | B207: 10 | C207: Dem Hotelstandard angemessen | D207: 7 | E207: ja/nein
A208: 95 | B208: 11 | C208: Qualität der Bettbezüge angemessen | D208: 7 | E208: ja/nein
A209: 96 | B209: 12 | C209: Matratze/Liegekomfort | D209: 7 | E209: 1-7
A210: 97 | B210: 13 | C210: Bettdecken der Jahreszeit angepasst | D210: 7 | E210: ja/nein
A211: 98 | B211: 14 | C211: Zusatzkopfkissen auf Wunsch (kein Zierkissen) | D211: 7 | E211: ja/nein
A212: 99 | B212: 15 | C212: Zusatzdecke auf Wunsch | D212: 7 | E212: ja/nein
A213: 100 | B213: 16 | C213: Zwei Kopfkissen pro Gast (kein Zierkissen) | D213: 7 | E213: ja/nein
A214: 101 | B214: 17 | C214: Auswahl verschiedener Kopfkissen | D214: 7 | E214: ja/nein
A215: 102 | B215: 18 | C215: Allergikerfreundliche Bettwäsche und Einlagen auf Wunsch | D215: 7 | E215: ja/nein
A216: 103 | B216: 19 | C216: Hygienebezüge (Matratzen und/oder Kopfkissen) | D216: 7 | E216: ja/nein
C218: Einrichtung | E218: Bewertung | F218: Kommentar
A219: 104 | B219: 20 | C219: Qualität und Zustand der Vorhänge | D219: 7 | E219: 1-7
A220: 105 | B220: 21 | C220: Verdunkelung mit Vorhängen möglich | D220: 7 | E220: ja/nein
A221: 106 | B221: 22 | C221: Schalter, Steckdosen leicht erreichbar und zugänglich (nicht durch andere Geräte belegt) | D221: 7 | E221: ja/nein
A222: 107 | B222: 23 | C222: Einwandfreie Wände | D222: 7 | E222: 1-7
A223: 108 | B223: 24 | C223: Einwandfreie Beleuchtung | D223: 7 | E223: 1-7
A224: 109 | B224: 25 | C224: Einwandfreie Einrichtung (Mobiliar) | D224: 7 | E224: ja/nein
A225: 110 | B225: 26 | C225: Angemessene Anzahl einheitlicher Kleiderbügel (kein Draht) bis inkl. 3*; verschiedene Bügelarten 4*, 5*; | D225: 7 | E225: ja/nein
A226: 111 | B226: 27 | C226: Geräumige Ablagemöglichkeiten | D226: 7 | E226: ja/nein
A227: 112 | B227: 28 | C227: Geräumige Hängevorrichtung in den Kästen | D227: 7 | E227: ja/nein
A228: 113 | B228: 29 | C228: Ist die permanent Strom führende Steckdose gekennzeichnet? | D228: 7 | E228: ja/nein
A229: 114 | B229: 30 | C229: Ist auf dem Schreibtisch ausreichend Platz für einen Laptop? | D229: 7 | E229: ja/nein
C231: Ausstattung und Services | E231: Bewertung | F231: Kommentar
A232: 115 | B232: 31 | C232: funktionstüchtige Audio- / Multimedia Unterhaltung (z.B. Radio, Streaming-Dienste) | D232: 7 | E232: ja/nein
A233: 116 | B233: 32 | C233: TV-Programme gut eingestellt | D233: 7 | E233: ja/nein
A234: 117 | B234: 33 | C234: Monitor (TV) in für Raumgröße angemessener Größe | D234: 7 | E234: 1-7
A235: 118 | B235: 34 | C235: Kommunikationsgerät mit interner und externer Telefonfunktion (3*-4* auf Wunsch, 5* auf dem Zimmer) | D235: 7 | E235: ja/nein
A236: 119 | B236: 35 | C236: Bedienungsanleitung für das Kommunikationsgerät (ab 5* zweisprachig verpflichtend) | D236: 7 | E236: ja/nein
A237: 120 | B237: 36 | C237: Schreibblock und einem Bleistift neben Telefon | D237: 7 | E237: ja/nein
A238: 121 | B238: 37 | C238: WLAN Internetzugang auf den Zimmern | D238: 7 | E238: ja/nein
A239: 122 | B239: 38 | C239: Druckmöglichkeit auf Wunsch | D239: 7 | E239: ja/nein
A240: 123 | B240: 39 | C240: Einwandfreie Funktionalität aller elektrischen Einrichtungen (z.B. Licht, TV, Fön) | D240: 7 | E240: ja/nein
A241: 124 | B241: 40 | C241: Safe im Zimmer (ab 5* verpflichtend) | D241: 7 | E241: ja/nein
A242: 125 | B242: 41 | C242: "Bitte nicht stören/Bitte aufräumen" Angabemöglichkeit vorhanden | D242: 7 | E242: ja/nein
A243: 126 | B243: 42 | C243: "Bitte nicht aufräumen" (opt-out von Zimmerreinigung) | D243: 7 | E243: ja/nein
A244: 127 | B244: 43 | C244: Aktualität des Infomaterials (gedruckt oder digital) | D244: 7 | E244: ja/nein
A245: 128 | B245: 44 | C245: Sicherheitsbestimmungen (z.B. Brandschutz, Fluchtwege) sichtbar | D245: 7 | E245: ja/nein
A246: 129 | B246: 45 | C246: Aktuelles Medienangebot (Zeitschriften und/oder Magazine - gedruckt oder digital) | D246: 7 | E246: 1-7
A247: 130 | B247: 46 | C247: Zweisprachiger Serviceleitfaden (gedruckt oder digital) | D247: 7 | E247: ja/nein
A248: 131 | B248: 47 | C248: Internationaler Steckdosenadapter, Ladegeräte/Adapter auf Wunsch (z.B. für elektr. Geräte wie Handys, Tabletts...) ab 1* verpflichtend | D248: 7 | E248: ja/nein
A249: 132 | B249: 48 | C249: Pro Bett ein Trinkglas auf Untersetzer (z.B. Serviette) | D249: 7 | E249: ja/nein
A250: 133 | B250: 49 | C250: Angebote in Minibar (Getränke, Snacks - 5* verpflichtend) | D250: 7 | E250: 1-7
A251: 134 | B251: 50 | C251: sind ausreichend Sitzgelegenheiten vorhanden? | D251: 7 | E251: ja/nein
A252: 135 | B252: 51 | C252: Qualität der Sitzgelegeneheiten | D252: 7 | E252: 1-7
A253: 136 | B253: 52 | C253: Getränke im Roomservice mit Getränkekarte (4* - 12h; 5* - 24h) | D253: 7 | E253: 1-7
A254: 137 | B254: 53 | C254: Speisen im Roomservice mit Speisekarte (4* - 12h; 5* - 24h) | D254: 7 | E254: 1-7
A255: 138 | B255: 54 | C255: Frühstückskarte im Roomservice | D255: 7 | E255: ja/nein
A256: 139 | B256: 55 | C256: Wäschereiservice | D256: 7 | E256: ja/nein
A257: 140 | B257: 56 | C257: Bügelservice | D257: 7 | E257: ja/nein
A258: 141 | B258: 57 | C258: Nähservice | D258: 7 | E258: ja/nein
A259: 142 | B259: 58 | C259: Schuhputzservice | D259: 7 | E259: ja/nein
C261: Badezimmer | E261: Bewertung | F261: Kommentar
A262: 143 | B262: 59 | C262: Atmosphäre (Wohlfühlcharakter) | D262: 7 | E262: 1-7
A263: 144 | B263: 60 | C263: Entsprechende Ausstattung | D263: 7 | E263: 1-7
A264: 145 | B264: 61 | C264: Helligkeit | D264: 7 | E264: 1-7
A265: 146 | B265: 62 | C265: Einwandfreie Hygiene und Sauberkeit | D265: 7 | E265: ja/nein
A266: 147 | B266: 63 | C266: Böden in der Dusche/ Wanne aus rutschfestem Material | D266: 7 | E266: ja/nein
A267: 148 | B267: 64 | C267: Einfach handhabbare Wasserhähne | D267: 7 | E267: ja/nein
A268: 149 | B268: 65 | C268: Pro Person ein einwandfreies Zahnputzglas (oder Zahnbürstenhalter) | D268: 7 | E268: ja/nein
A269: 150 | B269: 66 | C269: Mindestens ein qualitativ einwandfreies Handtuch pro Person | D269: 7 | E269: ja/nein
A270: 151 | B270: 67 | C270: Mindestens ein qualitativ einwandfreies Badetuch pro Person | D270: 7 | E270: ja/nein
A271: 152 | B271: 68 | C271: Badvorleger aus Textil | D271: 7 | E271: ja/nein
... 361 more rows

Sheet Tacho gesamt (hidden)
A1: Segment 1 (rot) | B1: 1
A2: Segment 2 | B2: 1
A3: Segment 3 | B3: 1
A4: Segment 4 | B4: 1
A5: Segment 5 | B5: 1
A6: Segment 6 | B6: 1
A7: Segment 7 (grün) | B7: 1
A8: Unsichtbar | B8: 7
A10: Zeiger | B10: =gesamt!D674 -> 7
A11: Rest | B11: =7-B10 -> 0
A12: Unsichtbar | B12: 7

Sheet SPA + Freizeit
C7: Fachverband Hotellerie
C11: Fragenkatalog für Mystery Guest-Check
C18: Arbeitsunterlage 2025-2030
C24: Dies ist die Auflistung der erforderlichen Prüfkriterien für Firmen, die einen Mystery-Test im Rahmen der Österreichischen Hotelklassifizierung durchführen. Über die Listung einer Firma entscheidet die Lenkungskommission bzw. der Fachverband Hotellerie nach Prüfung der Voraussetzungen.
C27: Bewertung
C29: ja / überdurchschnittlich erfülltes Kriterium | D29: 7
C30: gut bis sehr gut erfülltes Kriterium | D30: 6
C31: erfülltes Kriterium | D31: 5
C32: mittelmäßig erfülltes Kriterium | D32: 4
C33: teilweise erfülltes Kriterium | D33: 3
C34: zu kleinen Teilen erfülltes Kriterium | D34: 2
C35: nein / negativ erfülltes Kriterium | D35: 1
C38: Gesamtbewertung des Betriebs
C62: 1. Web-Auftritt
E63: Bewertung | F63: Kommentar
A64: 1 | B64: 1 | C64: Nachvollziehbare bzw. leicht auffindbare Webadresse | D64: 7 | E64: ja/nein
A65: 2 | B65: 2 | C65: Funktionieren alle Links | D65: 7 | E65: ja/nein
A66: 3 | B66: 3 | C66: Übersichtlichkeit, Struktur | D66: 7 | E66: 1-7
A67: 4 | B67: 4 | C67: Such-Funktion | D67: 7 | E67: ja/nein
A68: 5 | B68: 5 | C68: Integriertes Gästefeedback | D68: 7 | E68: ja/nein
A69: 6 | B69: 6 | C69: Verständlichkeit des Inhalts | D69: 7 | E69: ja/nein
A70: 7 | B70: 7 | C70: Aussagekräftiger, realistischer Auftritt mit Hotelbildern | D70: 7 | E70: ja/nein
A71: 8 | B71: 8 | C71: Aktualität (inkl. Kernöffnungszeiten Rezeption (1*-3*), wenn auf Buchungsbestätigung nicht angegeben; Öffnungstage Restaurant (1*-4* verpflichtend) sowie Öffnungszeiten der Sport-/Erholungs- und Wellnessbereich) | D71: 7 | E71: ja/nein
A72: 9 | B72: 9 | C72: Impressum | D72: 7 | E72: ja/nein
A73: 10 | B73: 10 | C73: Übersetzung in mindestens eine Fremdsprache (ab 1* verpflichtend) - automatische Übersetzung genügt | D73: 7 | E73: ja/nein
A74: 11 | B74: 11 | C74: Kontaktangabe (Email, Telefon, etc.) | D74: 7 | E74: ja/nein
A75: 12 | B75: 12 | C75: Online-Buchbarkeit auf eigener Website - benutzerfreundlich? | D75: 7 | E75: ja/nein
A76: 13 | B76: 13 | C76: Anfahrtsplan und Informationen über öffentliche Verkehrsanbindungen bzw. Transfermöglichkeiten | D76: 7 | E76: ja/nein
A77: 14 | B77: 14 | C77: Allgemeinen Geschäftsbedingungen, Stornobedingungen vorhanden | D77: 7 | E77: ja/nein
A78: 15 | B78: 15 | C78: Mobile Version der Website oder mobile Applikation | D78: 7 | E78: ja/nein
C79: Bewertung | D79: =SUM(D64:D78) -> 105
C80: Durchschnitt | D80: =SUM(D79/B78) -> 7
C82: Kommentar
C85: 2. E-Mail
C87: Beantwortung Ihrer E-Mail Anfrage, | E87: Bewertung | F87: Kommentar
A88: 16 | B88: 1 | C88: Innerhalb … Stunden ab Anfrage (3*S - 12; 4*S - 8; 5*/5*S - 4) | D88: 7 | E88: ja/nein
A89: 17 | B89: 2 | C89: Qualität (Schreibstil, Wortwahl, korrekte Anrede, Rechtsschreibung) | D89: 7 | E89: 1-7
A90: 18 | B90: 3 | C90: Informationsgehalt (z.B. Zusatzangebote) | D90: 7 | E90: 1-7
A91: 19 | B91: 4 | C91: Individuelle Bearbeitung von Sonderanfragen | D91: 7 | E91: 1-7
A92: 20 | B92: 5 | C92: Bei Angebot: Angaben zu Stornobedingungen | D92: 7 | E92: ja/nein
A93: 21 | B93: 6 | C93: Angabe von Zahlungsmodalitäten | D93: 7 | E93: ja/nein
A94: 22 | B94: 7 | C94: Anfahrts-, Wegbeschreibung, öffentliche Anreisemöglichkeiten | D94: 7 | E94: ja/nein
C95: Reservierungs-Bestätigung (E-Mail, Fax) als Antwort auf Ihre Buchung | F95: Kommentar
A96: 23 | B96: 8 | C96: Innerhalb … Stunden ab Reservierung (3*S - 24; 4*S - 12; 5*/5*S - 8) | D96: 7 | E96: ja/nein
A97: 24 | B97: 9 | C97: Qualität (Schreibstil, Wortwahl, korrekte Anrede, Rechtsschreibung) | D97: 7 | E97: 1-7
A98: 25 | B98: 10 | C98: Informationsgehalt (u.a. Aktuelle Anfahrtsbeschreibung) | D98: 7 | E98: 1-7
C99: Bewertung | D99: =SUM(D86:D98) -> 70
C100: Durchschnitt | D100: =SUM(D99/B98) -> 7
C102: Kommentar
C105: 3. Telefon
E106: Bewertung | F106: Kommentar
A107: 26 | B107: 1 | C107: Wartezeit (3*S - 1 Min; 4*S - 30 Sek; 5*/5*S - 15 Sek) | D107: 7 | E107: ja/nein
A108: 27 | B108: 2 | C108: Während der Wartezeit Text- bzw. Tonschleife | D108: 7 | E108: ja/nein
A109: 28 | B109: 3 | C109: Herzlichkeit | D109: 7 | E109: 1-7
A110: 29 | B110: 4 | C110: Klare deutliche Stimme und verständliche Aussprache | D110: 7 | E110: 1-7
A111: 30 | B111: 5 | C111: Anfragebeantwortung auf Deutsch (Rückruf ebenfalls aktzeptabel) | D111: 7 | E111: ja/nein
A112: 31 | B112: 6 | C112: Mit Namen angesprochen | D112: 7 | E112: ja/nein
A113: 32 | B113: 7 | C113: Vollständige Datenaufnahme (z.B. Name, Adresse, Tel, Email-Nachfrage) | D113: 7 | E113: ja/nein
A114: 33 | B114: 8 | C114: Fachliche Kompetenz | D114: 7 | E114: 1-7
A115: 34 | B115: 9 | C115: An- und Abreisedatum wiederholt und bestätigt | D115: 7 | E115: ja/nein
A116: 35 | B116: 10 | C116: Individuelle Bearbeitung von Sonderanfragen | D116: 7 | E116: 1-7
A117: 36 | B117: 11 | C117: Informationen über Check-in-Zeiten | D117: 7 | E117: ja/nein
A118: 37 | B118: 12 | C118: Aktives Anbieten von Zusatzleistungen | D118: 7 | E118: ja/nein
A119: 38 | B119: 13 | C119: Hinweis auf Stornobedingungen bei telefonischer Buchung | D119: 7 | E119: ja/nein
A120: 39 | B120: 14 | C120: Freundliche Verabschiedung und Dank | D120: 7 | E120: 1-7
C121: Bewertung | D121: =SUM(D107:D120) -> 98
C122: Durchschnitt | D122: =SUM(D121/B120) -> 7
C124: Kommentar
C126: 4. Anreise und Außenanlage
E127: Bewertung | F127: Kommentar
A128: 40 | B128: 1 | C128: Auffindbarkeit (z.B. Beschilderung im Ort) | D128: 7 | E128: 1-7
A129: 41 | B129: 2 | C129: Zufahrtsmöglichkeit bis zum Eingang | D129: 7 | E129: ja/nein
A130: 42 | B130: 3 | C130: Park- bzw. Garagenplätze (Zustand, Größe, ausreichende Anzahl etc.) | D130: 7 | E130: 1-7
A131: 43 | B131: 4 | C131: Beleuchtung des gesamten Außenbereichs inkl. Park- bzw. Garagenplätze | D131: 7 | E131: 1-7
A132: 44 | B132: 5 | C132: Gepäckservice | D132: 7 | E132: ja/nein
A133: 45 | B133: 6 | C133: Beschilderung am Haus (z.B. Eingang, Garage, Skikeller etc.) | D133: 7 | E133: 1-7
A134: 46 | B134: 7 | C134: Sauberkeit und Zustand des Gebäudes sowie der Außenanlagen | D134: 7 | E134: 1-7
A135: 47 | B135: 8 | C135: Parkservice (z.B. Doorman, Wagenmeister) | D135: 7 | E135: ja/nein
A136: 48 | B136: 9 | C136: Angebot zur leichteren Ermöglichung der öffentlichen Anreise (z.B. Transfer) | D136: 7 | E136: 1-7
C137: Bewertung | D137: =SUM(D128:D136) -> 63
C138: Durchschnitt | D138: =SUM(D137/B136) -> 7
C140: Kommentar
C143: 5. Check-In
C145: Eingangsbereich & Lobby | E145: Bewertung | F145: Kommentar
A146: 49 | B146: 1 | C146: Raumklima (Geruch) | D146: 7 | E146: 1-7
A147: 50 | B147: 2 | C147: Raumtemperatur | D147: 7 | E147: 1-7
A148: 51 | B148: 3 | C148: Beleuchtung ausreichend und ansprechend | D148: 7 | E148: 1-7
A149: 52 | B149: 4 | C149: Ambiente/Atmosphäre | D149: 7 | E149: 1-7
A150: 53 | B150: 5 | C150: Entsprechend qualitatives Mobiliar | D150: 7 | E150: 1-7
A151: 54 | B151: 6 | C151: Sauberkeit und Ordnung insb. Check-In-Bereich (Front Office) | D151: 7 | E151: ja/nein
A152: 55 | B152: 7 | C152: Stimmige Dekorationen | D152: 7 | E152: 1-7
A153: 56 | B153: 8 | C153: Großzügiger Sitzbereich für Gäste | D153: 7 | E153: ja/nein
C155: Front Office Mitarbeiter | E155: Bewertung | F155: Kommentar
A156: 57 | B156: 9 | C156: Anwesenheit | D156: 7 | E156: ja/nein
A157: 58 | B157: 10 | C157: Begrüßung (z.B. Welcome Drink) | D157: 7 | E157: ja/nein
A158: 59 | B158: 11 | C158: Herzlichkeit, Freundlichkeit | D158: 7 | E158: 1-7
A159: 60 | B159: 12 | C159: Erscheinungsbild Mitarbeiter (z.B. Uniform, Namensschild) | D159: 7 | E159: 1-7
A160: 61 | B160: 13 | C160: Fachkompetenz | D160: 7 | E160: 1-7
A161: 62 | B161: 14 | C161: Fremdsprachenkenntnisse (Deutsch + mind. eine Fremdsprache - ab 3* verpflichtend) | D161: 7 | E161: ja/nein
A162: 63 | B162: 15 | C162: Aufmerksamkeit, Sorgfältigkeit, Hilfsbereitschaft | D162: 7 | E162: 1-7
A163: 64 | B163: 16 | C163: Effizienz (Schnelligkeit, Flexibilität) | D163: 7 | E163: 1-7
A164: 65 | B164: 17 | C164: Klare, gut verständliche Aussprache | D164: 7 | E164: 1-7
A165: 66 | B165: 18 | C165: Gast mit Namen angesprochen | D165: 7 | E165: ja/nein
A166: 67 | B166: 19 | C166: Vorbereiteter Meldezettel | D166: 7 | E166: ja/nein
A167: 68 | B167: 20 | C167: Gepäcksservice angeboten | D167: 7 | E167: ja/nein
A168: 69 | B168: 21 | C168: Begleitung auf das Zimmer angeboten | D168: 7 | E168: ja/nein
A169: 70 | B169: 22 | C169: Allgemeine Haus-Informationen angeboten bzw. gegeben | D169: 7 | E169: ja/nein
A170: 71 | B170: 23 | C170: Angenehmen Aufenthalt gewünscht | D170: 7 | E170: ja/nein
C172: Begleitung zum Zimmer | E172: Bewertung | F172: Kommentar
A173: 72 | B173: 24 | C173: Erscheinungsbild des Mitarbeiters | D173: 7 | E173: 1-7
A174: 73 | B174: 25 | C174: Freundlichkeit, Konversation | D174: 7 | E174: 1-7
C176: Rooming | E176: Bewertung | F176: Kommentar
A177: 74 | B177: 26 | C177: Hinweis auf Hauptschalter (für Strom im Zimmer) | D177: 7 | E177: ja/nein
A178: 75 | B178: 27 | C178: Hinweis auf Heizung oder Klimaanlage | D178: 7 | E178: ja/nein
A179: 76 | B179: 28 | C179: Kommunikationsgerät (z.B. Telefon, Tablet, QR Code) (schriftliche Infos ausreichend) (3*-4* auf Wunsch, 5* auf dem Zimmer) | D179: 7 | E179: ja/nein
A180: 77 | B180: 29 | C180: Telefonverzeichnis bzw. -nummern (für Zimmerservice) - schriftliche Infos ausreichend | D180: 7 | E180: ja/nein
A181: 78 | B181: 30 | C181: Minibar oder Maxibar (bis 4*) (schriftliche Infos ausreichend) | D181: 7 | E181: ja/nein
A182: 79 | B182: 31 | C182: Safe (schriftliche Infos ausreichend) | D182: 7 | E182: ja/nein
A183: 80 | B183: 32 | C183: Wäsche-Service (schriftliche Infos ausreichend) | D183: 7 | E183: ja/nein
A184: 81 | B184: 33 | C184: Bügel-Service (schriftliche Infos ausreichend) | D184: 7 | E184: ja/nein
A185: 82 | B185: 34 | C185: Öffnungszeiten Restaurant, Bar, Sport-/ Erholungs- und/oder Wellnessbereich (schriftliche Infos ausreichend) | D185: 7 | E185: ja/nein
A186: 83 | B186: 35 | C186: Zeitangabe Frühstück (schriftliche Infos ausreichend) | D186: 7 | E186: ja/nein
A187: 84 | B187: 36 | C187: Rezeption 24 Std. erreichbar und … Std. besetzt (3*S - 8 bzw. 10; 4*S - 14; 5*/5*S - 24) | D187: 7 | E187: ja/nein
C188: Bewertung | D188: =SUM(D146:D187) -> 252
C189: Durchschnitt | D189: =SUM(D188/B187) -> 7
C191: Kommentar
C193: 6. Zimmer
C195: Erster Eindruck und Allgemeiner Charakter | E195: Bewertung | F195: Kommentar
A196: 85 | B196: 1 | C196: Raumklima (Frischer Geruch) | D196: 7 | E196: 1-7
A197: 86 | B197: 2 | C197: Angenehme Temperatur | D197: 7 | E197: 1-7
A198: 87 | B198: 3 | C198: Atmosphäre (Wohlfühlcharakter) | D198: 7 | E198: 1-7
A199: 88 | B199: 4 | C199: Geräuschpegel (Ruhe) | D199: 7 | E199: 1-7
A200: 89 | B200: 5 | C200: Entsprechendes Mobiliar | D200: 7 | E200: 1-7
A201: 90 | B201: 6 | C201: Sauberkeit | D201: 7 | E201: 1-7
A202: 91 | B202: 7 | C202: Willkommensbrief/-karte | D202: 7 | E202: ja/nein
A203: 92 | B203: 8 | C203: Willkommensgruß (z.B. Blumen, Obst, Konfekt…) | D203: 7 | E203: ja/nein
A204: 93 | B204: 9 | C204: Türschloss in einwandfreiem Zustand | D204: 7 | E204: ja/nein
C206: Das Bett | E206: Bewertung | F206: Kommentar
A207: 94 | B207: 10 | C207: Dem Hotelstandard angemessen | D207: 7 | E207: ja/nein
A208: 95 | B208: 11 | C208: Qualität der Bettbezüge angemessen | D208: 7 | E208: ja/nein
A209: 96 | B209: 12 | C209: Matratze/Liegekomfort | D209: 7 | E209: 1-7
A210: 97 | B210: 13 | C210: Bettdecken der Jahreszeit angepasst | D210: 7 | E210: ja/nein
A211: 98 | B211: 14 | C211: Zusatzkopfkissen auf Wunsch (kein Zierkissen) | D211: 7 | E211: ja/nein
A212: 99 | B212: 15 | C212: Zusatzdecke auf Wunsch | D212: 7 | E212: ja/nein
A213: 100 | B213: 16 | C213: Zwei Kopfkissen pro Gast (kein Zierkissen) | D213: 7 | E213: ja/nein
A214: 101 | B214: 17 | C214: Auswahl verschiedener Kopfkissen | D214: 7 | E214: ja/nein
A215: 102 | B215: 18 | C215: Allergikerfreundliche Bettwäsche und Einlagen auf Wunsch | D215: 7 | E215: ja/nein
A216: 103 | B216: 19 | C216: Hygienebezüge (Matratzen und/oder Kopfkissen) | D216: 7 | E216: ja/nein
C218: Einrichtung | E218: Bewertung | F218: Kommentar
A219: 104 | B219: 20 | C219: Qualität und Zustand der Vorhänge | D219: 7 | E219: 1-7
A220: 105 | B220: 21 | C220: Verdunkelung mit Vorhängen möglich | D220: 7 | E220: ja/nein
A221: 106 | B221: 22 | C221: Schalter, Steckdosen leicht erreichbar und zugänglich (nicht durch andere Geräte belegt) | D221: 7 | E221: ja/nein
A222: 107 | B222: 23 | C222: Einwandfreie Wände | D222: 7 | E222: 1-7
A223: 108 | B223: 24 | C223: Einwandfreie Beleuchtung | D223: 7 | E223: 1-7
A224: 109 | B224: 25 | C224: Einwandfreie Einrichtung (Mobiliar) | D224: 7 | E224: ja/nein
A225: 110 | B225: 26 | C225: Angemessene Anzahl einheitlicher Kleiderbügel (kein Draht) bis inkl. 3*; verschiedene Bügelarten 4*, 5*; | D225: 7 | E225: ja/nein
A226: 111 | B226: 27 | C226: Geräumige Ablagemöglichkeiten | D226: 7 | E226: ja/nein
A227: 112 | B227: 28 | C227: Geräumige Hängevorrichtung in den Kästen | D227: 7 | E227: ja/nein
A228: 113 | B228: 29 | C228: Ist die permanent Strom führende Steckdose gekennzeichnet? | D228: 7 | E228: ja/nein
A229: 114 | B229: 30 | C229: Ist auf dem Schreibtisch ausreichend Platz für einen Laptop? | D229: 7 | E229: ja/nein
C231: Ausstattung und Services | E231: Bewertung | F231: Kommentar
A232: 115 | B232: 31 | C232: funktionstüchtige Audio- / Multimedia Unterhaltung (z.B. Radio, Streaming-Dienste) | D232: 7 | E232: ja/nein
A233: 116 | B233: 32 | C233: TV-Programme gut eingestellt | D233: 7 | E233: ja/nein
A234: 117 | B234: 33 | C234: Monitor (TV) in für Raumgröße angemessener Größe | D234: 7 | E234: 1-7
A235: 118 | B235: 34 | C235: Kommunikationsgerät mit interner und externer Telefonfunktion (3*-4* auf Wunsch, 5* auf dem Zimmer) | D235: 7 | E235: ja/nein
A236: 119 | B236: 35 | C236: Bedienungsanleitung für das Kommunikationsgerät (ab 5* zweisprachig verpflichtend) | D236: 7 | E236: ja/nein
A237: 120 | B237: 36 | C237: Schreibblock und einem Bleistift neben Telefon | D237: 7 | E237: ja/nein
A238: 121 | B238: 37 | C238: WLAN Internetzugang auf den Zimmern | D238: 7 | E238: ja/nein
A239: 122 | B239: 38 | C239: Druckmöglichkeit auf Wunsch | D239: 7 | E239: ja/nein
A240: 123 | B240: 39 | C240: Einwandfreie Funktionalität aller elektrischen Einrichtungen (z.B. Licht, TV, Fön) | D240: 7 | E240: ja/nein
A241: 124 | B241: 40 | C241: Safe im Zimmer (ab 5* verpflichtend) | D241: 7 | E241: ja/nein
A242: 125 | B242: 41 | C242: "Bitte nicht stören/Bitte aufräumen" Angabemöglichkeit vorhanden | D242: 7 | E242: ja/nein
A243: 126 | B243: 42 | C243: "Bitte nicht aufräumen" (opt-out von Zimmerreinigung) | D243: 7 | E243: ja/nein
A244: 127 | B244: 43 | C244: Aktualität des Infomaterials (gedruckt oder digital) | D244: 7 | E244: ja/nein
A245: 128 | B245: 44 | C245: Sicherheitsbestimmungen (z.B. Brandschutz, Fluchtwege) sichtbar | D245: 7 | E245: ja/nein
A246: 129 | B246: 45 | C246: Aktuelles Medienangebot (Zeitschriften und/oder Magazine - gedruckt oder digital) | D246: 7 | E246: 1-7
A247: 130 | B247: 46 | C247: Zweisprachiger Serviceleitfaden (gedruckt oder digital) | D247: 7 | E247: ja/nein
A248: 131 | B248: 47 | C248: Internationaler Steckdosenadapter, Ladegeräte/Adapter auf Wunsch (z.B. für elektr. Geräte wie Handys, Tabletts...) ab 1* verpflichtend | D248: 7 | E248: ja/nein
A249: 132 | B249: 48 | C249: Pro Bett ein Trinkglas auf Untersetzer (z.B. Serviette) | D249: 7 | E249: ja/nein
A250: 133 | B250: 49 | C250: Angebote in Minibar (Getränke, Snacks - 5* verpflichtend) | D250: 7 | E250: 1-7
A251: 134 | B251: 50 | C251: sind ausreichend Sitzgelegenheiten vorhanden? | D251: 7 | E251: ja/nein
A252: 135 | B252: 51 | C252: Qualität der Sitzgelegeneheiten | D252: 7 | E252: 1-7
A253: 136 | B253: 52 | C253: Getränke im Roomservice mit Getränkekarte (4* - 12h; 5* - 24h) | D253: 7 | E253: 1-7
A254: 137 | B254: 53 | C254: Speisen im Roomservice mit Speisekarte (4* - 12h; 5* - 24h) | D254: 7 | E254: 1-7
A255: 138 | B255: 54 | C255: Frühstückskarte im Roomservice | D255: 7 | E255: ja/nein
A256: 139 | B256: 55 | C256: Wäschereiservice | D256: 7 | E256: ja/nein
A257: 140 | B257: 56 | C257: Bügelservice | D257: 7 | E257: ja/nein
A258: 141 | B258: 57 | C258: Nähservice | D258: 7 | E258: ja/nein
A259: 142 | B259: 58 | C259: Schuhputzservice | D259: 7 | E259: ja/nein
C261: Badezimmer | E261: Bewertung | F261: Kommentar
A262: 143 | B262: 59 | C262: Atmosphäre (Wohlfühlcharakter) | D262: 7 | E262: 1-7
A263: 144 | B263: 60 | C263: Entsprechende Ausstattung | D263: 7 | E263: 1-7
A264: 145 | B264: 61 | C264: Helligkeit | D264: 7 | E264: 1-7
A265: 146 | B265: 62 | C265: Einwandfreie Hygiene und Sauberkeit | D265: 7 | E265: ja/nein
A266: 147 | B266: 63 | C266: Böden in der Dusche/ Wanne aus rutschfestem Material | D266: 7 | E266: ja/nein
A267: 148 | B267: 64 | C267: Einfach handhabbare Wasserhähne | D267: 7 | E267: ja/nein
A268: 149 | B268: 65 | C268: Pro Person ein einwandfreies Zahnputzglas (oder Zahnbürstenhalter) | D268: 7 | E268: ja/nein
A269: 150 | B269: 66 | C269: Mindestens ein qualitativ einwandfreies Handtuch pro Person | D269: 7 | E269: ja/nein
A270: 151 | B270: 67 | C270: Mindestens ein qualitativ einwandfreies Badetuch pro Person | D270: 7 | E270: ja/nein
A271: 152 | B271: 68 | C271: Badvorleger aus Textil | D271: 7 | E271: ja/nein
... 334 more rows

Sheet Tacho SPA + Freizeit (hidden)
A1: Segment 1 (rot) | B1: 1
A2: Segment 2 | B2: 1
A3: Segment 3 | B3: 1
A4: Segment 4 | B4: 1
A5: Segment 5 | B5: 1
A6: Segment 6 | B6: 1
A7: Segment 7 (grün) | B7: 1
A8: Unsichtbar | B8: 7
A10: Zeiger | B10: ='SPA + Freizeit'!$D$644 -> 7
A11: Rest | B11: =7-B10 -> 0
A12: Unsichtbar | B12: 7

Sheet Freizeit + Tagung
C7: Fachverband Hotellerie
C11: Fragenkatalog für Mystery Guest-Check
C18: Arbeitsunterlage 2025-2030
C24: Dies ist die Auflistung der erforderlichen Prüfkriterien für Firmen, die einen Mystery-Test im Rahmen der Österreichischen Hotelklassifizierung durchführen. Über die Listung einer Firma entscheidet die Lenkungskommission bzw. der Fachverband Hotellerie nach Prüfung der Voraussetzungen.
C27: Bewertung
C29: ja / überdurchschnittlich erfülltes Kriterium | D29: 7
C30: gut bis sehr gut erfülltes Kriterium | D30: 6
C31: erfülltes Kriterium | D31: 5
C32: mittelmäßig erfülltes Kriterium | D32: 4
C33: teilweise erfülltes Kriterium | D33: 3
C34: zu kleinen Teilen erfülltes Kriterium | D34: 2
C35: nein / negativ erfülltes Kriterium | D35: 1
C38: Gesamtbewertung des Betriebs
C63: 1. Web-Auftritt
E64: Bewertung | F64: Kommentar
A65: 1 | B65: 1 | C65: Nachvollziehbare bzw. leicht auffindbare Webadresse | D65: 7 | E65: ja/nein
A66: 2 | B66: 2 | C66: Funktionieren alle Links | D66: 7 | E66: ja/nein
A67: 3 | B67: 3 | C67: Übersichtlichkeit, Struktur | D67: 7 | E67: 1-7
A68: 4 | B68: 4 | C68: Such-Funktion | D68: 7 | E68: ja/nein
A69: 5 | B69: 5 | C69: Integriertes Gästefeedback | D69: 7 | E69: ja/nein
A70: 6 | B70: 6 | C70: Verständlichkeit des Inhalts | D70: 7 | E70: ja/nein
A71: 7 | B71: 7 | C71: Aussagekräftiger, realistischer Auftritt mit Hotelbildern | D71: 7 | E71: ja/nein
A72: 8 | B72: 8 | C72: Aktualität (inkl. Kernöffnungszeiten Rezeption (1*-3*), wenn auf Buchungsbestätigung nicht angegeben; Öffnungstage Restaurant (1*-4* verpflichtend) sowie Öffnungszeiten der Sport-/Erholungs- und Wellnessbereich) | D72: 7 | E72: ja/nein
A73: 9 | B73: 9 | C73: Impressum | D73: 7 | E73: ja/nein
A74: 10 | B74: 10 | C74: Übersetzung in mindestens eine Fremdsprache (ab 1* verpflichtend) - automatische Übersetzung genügt | D74: 7 | E74: ja/nein
A75: 11 | B75: 11 | C75: Kontaktangabe (Email, Telefon, etc.) | D75: 7 | E75: ja/nein
A76: 12 | B76: 12 | C76: Online-Buchbarkeit auf eigener Website - benutzerfreundlich? | D76: 7 | E76: ja/nein
A77: 13 | B77: 13 | C77: Anfahrtsplan und Informationen über öffentliche Verkehrsanbindungen bzw. Transfermöglichkeiten | D77: 7 | E77: ja/nein
A78: 14 | B78: 14 | C78: Allgemeinen Geschäftsbedingungen, Stornobedingungen vorhanden | D78: 7 | E78: ja/nein
A79: 15 | B79: 15 | C79: Mobile Version der Website oder mobile Applikation | D79: 7 | E79: ja/nein
C80: Bewertung | D80: =SUM(D65:D79) -> 105
C81: Durchschnitt | D81: =SUM(D80/B79) -> 7
C83: Kommentar
C85: 2. E-Mail
C87: Beantwortung Ihrer E-Mail Anfrage, | E87: Bewertung | F87: Kommentar
A88: 16 | B88: 1 | C88: Innerhalb … Stunden ab Anfrage (3*S - 12; 4*S - 8; 5*/5*S - 4) | D88: 7 | E88: ja/nein
A89: 17 | B89: 2 | C89: Qualität (Schreibstil, Wortwahl, korrekte Anrede, Rechtsschreibung) | D89: 7 | E89: 1-7
A90: 18 | B90: 3 | C90: Informationsgehalt (z.B. Zusatzangebote) | D90: 7 | E90: 1-7
A91: 19 | B91: 4 | C91: Individuelle Bearbeitung von Sonderanfragen | D91: 7 | E91: 1-7
A92: 20 | B92: 5 | C92: Bei Angebot: Angaben zu Stornobedingungen | D92: 7 | E92: ja/nein
A93: 21 | B93: 6 | C93: Angabe von Zahlungsmodalitäten | D93: 7 | E93: ja/nein
A94: 22 | B94: 7 | C94: Anfahrts-, Wegbeschreibung, öffentliche Anreisemöglichkeiten | D94: 7 | E94: ja/nein
C95: Reservierungs-Bestätigung (E-Mail, Fax) als Antwort auf Ihre Buchung | F95: Kommentar
A96: 23 | B96: 8 | C96: Innerhalb … Stunden ab Reservierung (3*S - 24; 4*S - 12; 5*/5*S - 8) | D96: 7 | E96: ja/nein
A97: 24 | B97: 9 | C97: Qualität (Schreibstil, Wortwahl, korrekte Anrede, Rechtsschreibung) | D97: 7 | E97: 1-7
A98: 25 | B98: 10 | C98: Informationsgehalt (u.a. Aktuelle Anfahrtsbeschreibung) | D98: 7 | E98: 1-7
C99: Bewertung | D99: =SUM(D86:D98) -> 70
C100: Durchschnitt | D100: =SUM(D99/B98) -> 7
C102: Kommentar
C105: 3. Telefon
E106: Bewertung | F106: Kommentar
A107: 26 | B107: 1 | C107: Wartezeit (3*S - 1 Min; 4*S - 30 Sek; 5*/5*S - 15 Sek) | D107: 7 | E107: ja/nein
A108: 27 | B108: 2 | C108: Während der Wartezeit Text- bzw. Tonschleife | D108: 7 | E108: ja/nein
A109: 28 | B109: 3 | C109: Herzlichkeit | D109: 7 | E109: 1-7
A110: 29 | B110: 4 | C110: Klare deutliche Stimme und verständliche Aussprache | D110: 7 | E110: 1-7
A111: 30 | B111: 5 | C111: Anfragebeantwortung auf Deutsch (Rückruf ebenfalls aktzeptabel) | D111: 7 | E111: ja/nein
A112: 31 | B112: 6 | C112: Mit Namen angesprochen | D112: 7 | E112: ja/nein
A113: 32 | B113: 7 | C113: Vollständige Datenaufnahme (z.B. Name, Adresse, Tel, Email-Nachfrage) | D113: 7 | E113: ja/nein
A114: 33 | B114: 8 | C114: Fachliche Kompetenz | D114: 7 | E114: 1-7
A115: 34 | B115: 9 | C115: An- und Abreisedatum wiederholt und bestätigt | D115: 7 | E115: ja/nein
A116: 35 | B116: 10 | C116: Individuelle Bearbeitung von Sonderanfragen | D116: 7 | E116: 1-7
A117: 36 | B117: 11 | C117: Informationen über Check-in-Zeiten | D117: 7 | E117: ja/nein
A118: 37 | B118: 12 | C118: Aktives Anbieten von Zusatzleistungen | D118: 7 | E118: ja/nein
A119: 38 | B119: 13 | C119: Hinweis auf Stornobedingungen bei telefonischer Buchung | D119: 7 | E119: ja/nein
A120: 39 | B120: 14 | C120: Freundliche Verabschiedung und Dank | D120: 7 | E120: 1-7
C121: Bewertung | D121: =SUM(D107:D120) -> 98
C122: Durchschnitt | D122: =SUM(D121/B120) -> 7
C124: Kommentar
C126: 4. Anreise und Außenanlage
E127: Bewertung | F127: Kommentar
A128: 40 | B128: 1 | C128: Auffindbarkeit (z.B. Beschilderung im Ort) | D128: 7 | E128: 1-7
A129: 41 | B129: 2 | C129: Zufahrtsmöglichkeit bis zum Eingang | D129: 7 | E129: ja/nein
A130: 42 | B130: 3 | C130: Park- bzw. Garagenplätze (Zustand, Größe, ausreichende Anzahl etc.) | D130: 7 | E130: 1-7
A131: 43 | B131: 4 | C131: Beleuchtung des gesamten Außenbereichs inkl. Park- bzw. Garagenplätze | D131: 7 | E131: 1-7
A132: 44 | B132: 5 | C132: Gepäckservice | D132: 7 | E132: ja/nein
A133: 45 | B133: 6 | C133: Beschilderung am Haus (z.B. Eingang, Garage, Skikeller etc.) | D133: 7 | E133: 1-7
A134: 46 | B134: 7 | C134: Sauberkeit und Zustand des Gebäudes sowie der Außenanlagen | D134: 7 | E134: 1-7
A135: 47 | B135: 8 | C135: Parkservice (z.B. Doorman, Wagenmeister) | D135: 7 | E135: ja/nein
A136: 48 | B136: 9 | C136: Angebot zur leichteren Ermöglichung der öffentlichen Anreise (z.B. Transfer) | D136: 7 | E136: 1-7
C137: Bewertung | D137: =SUM(D128:D136) -> 63
C138: Durchschnitt | D138: =SUM(D137/B136) -> 7
C140: Kommentar
C143: 5. Check-In
C145: Eingangsbereich & Lobby | E145: Bewertung | F145: Kommentar
A146: 49 | B146: 1 | C146: Raumklima (Geruch) | D146: 7 | E146: 1-7
A147: 50 | B147: 2 | C147: Raumtemperatur | D147: 7 | E147: 1-7
A148: 51 | B148: 3 | C148: Beleuchtung ausreichend und ansprechend | D148: 7 | E148: 1-7
A149: 52 | B149: 4 | C149: Ambiente/Atmosphäre | D149: 7 | E149: 1-7
A150: 53 | B150: 5 | C150: Entsprechend qualitatives Mobiliar | D150: 7 | E150: 1-7
A151: 54 | B151: 6 | C151: Sauberkeit und Ordnung insb. Check-In-Bereich (Front Office) | D151: 7 | E151: ja/nein
A152: 55 | B152: 7 | C152: Stimmige Dekorationen | D152: 7 | E152: 1-7
A153: 56 | B153: 8 | C153: Großzügiger Sitzbereich für Gäste | D153: 7 | E153: ja/nein
C155: Front Office Mitarbeiter | E155: Bewertung | F155: Kommentar
A156: 57 | B156: 9 | C156: Anwesenheit | D156: 7 | E156: ja/nein
A157: 58 | B157: 10 | C157: Begrüßung (z.B. Welcome Drink) | D157: 7 | E157: ja/nein
A158: 59 | B158: 11 | C158: Herzlichkeit, Freundlichkeit | D158: 7 | E158: 1-7
A159: 60 | B159: 12 | C159: Erscheinungsbild Mitarbeiter (z.B. Uniform, Namensschild) | D159: 7 | E159: 1-7
A160: 61 | B160: 13 | C160: Fachkompetenz | D160: 7 | E160: 1-7
A161: 62 | B161: 14 | C161: Fremdsprachenkenntnisse (Deutsch + mind. eine Fremdsprache - ab 3* verpflichtend) | D161: 7 | E161: ja/nein
A162: 63 | B162: 15 | C162: Aufmerksamkeit, Sorgfältigkeit, Hilfsbereitschaft | D162: 7 | E162: 1-7
A163: 64 | B163: 16 | C163: Effizienz (Schnelligkeit, Flexibilität) | D163: 7 | E163: 1-7
A164: 65 | B164: 17 | C164: Klare, gut verständliche Aussprache | D164: 7 | E164: 1-7
A165: 66 | B165: 18 | C165: Gast mit Namen angesprochen | D165: 7 | E165: ja/nein
A166: 67 | B166: 19 | C166: Vorbereiteter Meldezettel | D166: 7 | E166: ja/nein
A167: 68 | B167: 20 | C167: Gepäcksservice angeboten | D167: 7 | E167: ja/nein
A168: 69 | B168: 21 | C168: Begleitung auf das Zimmer angeboten | D168: 7 | E168: ja/nein
A169: 70 | B169: 22 | C169: Allgemeine Haus-Informationen angeboten bzw. gegeben | D169: 7 | E169: ja/nein
A170: 71 | B170: 23 | C170: Angenehmen Aufenthalt gewünscht | D170: 7 | E170: ja/nein
C172: Begleitung zum Zimmer | E172: Bewertung | F172: Kommentar
A173: 72 | B173: 24 | C173: Erscheinungsbild des Mitarbeiters | D173: 7 | E173: 1-7
A174: 73 | B174: 25 | C174: Freundlichkeit, Konversation | D174: 7 | E174: 1-7
C176: Rooming | E176: Bewertung | F176: Kommentar
A177: 74 | B177: 26 | C177: Hinweis auf Hauptschalter (für Strom im Zimmer) | D177: 7 | E177: ja/nein
A178: 75 | B178: 27 | C178: Hinweis auf Heizung oder Klimaanlage | D178: 7 | E178: ja/nein
A179: 76 | B179: 28 | C179: Kommunikationsgerät (z.B. Telefon, Tablet, QR Code) (schriftliche Infos ausreichend) (3*-4* auf Wunsch, 5* auf dem Zimmer) | D179: 7 | E179: ja/nein
A180: 77 | B180: 29 | C180: Telefonverzeichnis bzw. -nummern (für Zimmerservice) - schriftliche Infos ausreichend | D180: 7 | E180: ja/nein
A181: 78 | B181: 30 | C181: Minibar oder Maxibar (bis 4*) (schriftliche Infos ausreichend) | D181: 7 | E181: ja/nein
A182: 79 | B182: 31 | C182: Safe (schriftliche Infos ausreichend) | D182: 7 | E182: ja/nein
A183: 80 | B183: 32 | C183: Wäsche-Service (schriftliche Infos ausreichend) | D183: 7 | E183: ja/nein
A184: 81 | B184: 33 | C184: Bügel-Service (schriftliche Infos ausreichend) | D184: 7 | E184: ja/nein
A185: 82 | B185: 34 | C185: Öffnungszeiten Restaurant, Bar, Sport-/ Erholungs- und/oder Wellnessbereich (schriftliche Infos ausreichend) | D185: 7 | E185: ja/nein
A186: 83 | B186: 35 | C186: Zeitangabe Frühstück (schriftliche Infos ausreichend) | D186: 7 | E186: ja/nein
A187: 84 | B187: 36 | C187: Rezeption 24 Std. erreichbar und … Std. besetzt (3*S - 8 bzw. 10; 4*S - 14; 5*/5*S - 24) | D187: 7 | E187: ja/nein
C188: Bewertung | D188: =SUM(D146:D187) -> 252
C189: Durchschnitt | D189: =SUM(D188/B187) -> 7
C191: Kommentar
C193: 6. Zimmer
C195: Erster Eindruck und Allgemeiner Charakter | E195: Bewertung | F195: Kommentar
A196: 85 | B196: 1 | C196: Raumklima (Frischer Geruch) | D196: 7 | E196: 1-7
A197: 86 | B197: 2 | C197: Angenehme Temperatur | D197: 7 | E197: 1-7
A198: 87 | B198: 3 | C198: Atmosphäre (Wohlfühlcharakter) | D198: 7 | E198: 1-7
A199: 88 | B199: 4 | C199: Geräuschpegel (Ruhe) | D199: 7 | E199: 1-7
A200: 89 | B200: 5 | C200: Entsprechendes Mobiliar | D200: 7 | E200: 1-7
A201: 90 | B201: 6 | C201: Sauberkeit | D201: 7 | E201: 1-7
A202: 91 | B202: 7 | C202: Willkommensbrief/-karte | D202: 7 | E202: ja/nein
A203: 92 | B203: 8 | C203: Willkommensgruß (z.B. Blumen, Obst, Konfekt…) | D203: 7 | E203: ja/nein
A204: 93 | B204: 9 | C204: Türschloss in einwandfreiem Zustand | D204: 7 | E204: ja/nein
C206: Das Bett | E206: Bewertung | F206: Kommentar
A207: 94 | B207: 10 | C207: Dem Hotelstandard angemessen | D207: 7 | E207: ja/nein
A208: 95 | B208: 11 | C208: Qualität der Bettbezüge angemessen | D208: 7 | E208: ja/nein
A209: 96 | B209: 12 | C209: Matratze/Liegekomfort | D209: 7 | E209: 1-7
A210: 97 | B210: 13 | C210: Bettdecken der Jahreszeit angepasst | D210: 7 | E210: ja/nein
A211: 98 | B211: 14 | C211: Zusatzkopfkissen auf Wunsch (kein Zierkissen) | D211: 7 | E211: ja/nein
A212: 99 | B212: 15 | C212: Zusatzdecke auf Wunsch | D212: 7 | E212: ja/nein
A213: 100 | B213: 16 | C213: Zwei Kopfkissen pro Gast (kein Zierkissen) | D213: 7 | E213: ja/nein
A214: 101 | B214: 17 | C214: Auswahl verschiedener Kopfkissen | D214: 7 | E214: ja/nein
A215: 102 | B215: 18 | C215: Allergikerfreundliche Bettwäsche und Einlagen auf Wunsch | D215: 7 | E215: ja/nein
A216: 103 | B216: 19 | C216: Hygienebezüge (Matratzen und/oder Kopfkissen) | D216: 7 | E216: ja/nein
C218: Einrichtung | E218: Bewertung | F218: Kommentar
A219: 104 | B219: 20 | C219: Qualität und Zustand der Vorhänge | D219: 7 | E219: 1-7
A220: 105 | B220: 21 | C220: Verdunkelung mit Vorhängen möglich | D220: 7 | E220: ja/nein
A221: 106 | B221: 22 | C221: Schalter, Steckdosen leicht erreichbar und zugänglich (nicht durch andere Geräte belegt) | D221: 7 | E221: ja/nein
A222: 107 | B222: 23 | C222: Einwandfreie Wände | D222: 7 | E222: 1-7
A223: 108 | B223: 24 | C223: Einwandfreie Beleuchtung | D223: 7 | E223: 1-7
A224: 109 | B224: 25 | C224: Einwandfreie Einrichtung (Mobiliar) | D224: 7 | E224: ja/nein
A225: 110 | B225: 26 | C225: Angemessene Anzahl einheitlicher Kleiderbügel (kein Draht) bis inkl. 3*; verschiedene Bügelarten 4*, 5*; | D225: 7 | E225: ja/nein
A226: 111 | B226: 27 | C226: Geräumige Ablagemöglichkeiten | D226: 7 | E226: ja/nein
A227: 112 | B227: 28 | C227: Geräumige Hängevorrichtung in den Kästen | D227: 7 | E227: ja/nein
A228: 113 | B228: 29 | C228: Ist die permanent Strom führende Steckdose gekennzeichnet? | D228: 7 | E228: ja/nein
A229: 114 | B229: 30 | C229: Ist auf dem Schreibtisch ausreichend Platz für einen Laptop? | D229: 7 | E229: ja/nein
C231: Ausstattung und Services | E231: Bewertung | F231: Kommentar
A232: 115 | B232: 31 | C232: funktionstüchtige Audio- / Multimedia Unterhaltung (z.B. Radio, Streaming-Dienste) | D232: 7 | E232: ja/nein
A233: 116 | B233: 32 | C233: TV-Programme gut eingestellt | D233: 7 | E233: ja/nein
A234: 117 | B234: 33 | C234: Monitor (TV) in für Raumgröße angemessener Größe | D234: 7 | E234: 1-7
A235: 118 | B235: 34 | C235: Kommunikationsgerät mit interner und externer Telefonfunktion (3*-4* auf Wunsch, 5* auf dem Zimmer) | D235: 7 | E235: ja/nein
A236: 119 | B236: 35 | C236: Bedienungsanleitung für das Kommunikationsgerät (ab 5* zweisprachig verpflichtend) | D236: 7 | E236: ja/nein
A237: 120 | B237: 36 | C237: Schreibblock und einem Bleistift neben Telefon | D237: 7 | E237: ja/nein
A238: 121 | B238: 37 | C238: WLAN Internetzugang auf den Zimmern | D238: 7 | E238: ja/nein
A239: 122 | B239: 38 | C239: Druckmöglichkeit auf Wunsch | D239: 7 | E239: ja/nein
A240: 123 | B240: 39 | C240: Einwandfreie Funktionalität aller elektrischen Einrichtungen (z.B. Licht, TV, Fön) | D240: 7 | E240: ja/nein
A241: 124 | B241: 40 | C241: Safe im Zimmer (ab 5* verpflichtend) | D241: 7 | E241: ja/nein
A242: 125 | B242: 41 | C242: "Bitte nicht stören/Bitte aufräumen" Angabemöglichkeit vorhanden | D242: 7 | E242: ja/nein
A243: 126 | B243: 42 | C243: "Bitte nicht aufräumen" (opt-out von Zimmerreinigung) | D243: 7 | E243: ja/nein
A244: 127 | B244: 43 | C244: Aktualität des Infomaterials (gedruckt oder digital) | D244: 7 | E244: ja/nein
A245: 128 | B245: 44 | C245: Sicherheitsbestimmungen (z.B. Brandschutz, Fluchtwege) sichtbar | D245: 7 | E245: ja/nein
A246: 129 | B246: 45 | C246: Aktuelles Medienangebot (Zeitschriften und/oder Magazine - gedruckt oder digital) | D246: 7 | E246: 1-7
A247: 130 | B247: 46 | C247: Zweisprachiger Serviceleitfaden (gedruckt oder digital) | D247: 7 | E247: ja/nein
A248: 131 | B248: 47 | C248: Internationaler Steckdosenadapter, Ladegeräte/Adapter auf Wunsch (z.B. für elektr. Geräte wie Handys, Tabletts...) ab 1* verpflichtend | D248: 7 | E248: ja/nein
A249: 132 | B249: 48 | C249: Pro Bett ein Trinkglas auf Untersetzer (z.B. Serviette) | D249: 7 | E249: ja/nein
A250: 133 | B250: 49 | C250: Angebote in Minibar (Getränke, Snacks - 5* verpflichtend) | D250: 7 | E250: 1-7
A251: 134 | B251: 50 | C251: sind ausreichend Sitzgelegenheiten vorhanden? | D251: 7 | E251: ja/nein
A252: 135 | B252: 51 | C252: Qualität der Sitzgelegeneheiten | D252: 7 | E252: 1-7
A253: 136 | B253: 52 | C253: Getränke im Roomservice mit Getränkekarte (4* - 12h; 5* - 24h) | D253: 7 | E253: 1-7
A254: 137 | B254: 53 | C254: Speisen im Roomservice mit Speisekarte (4* - 12h; 5* - 24h) | D254: 7 | E254: 1-7
A255: 138 | B255: 54 | C255: Frühstückskarte im Roomservice | D255: 7 | E255: ja/nein
A256: 139 | B256: 55 | C256: Wäschereiservice | D256: 7 | E256: ja/nein
A257: 140 | B257: 56 | C257: Bügelservice | D257: 7 | E257: ja/nein
A258: 141 | B258: 57 | C258: Nähservice | D258: 7 | E258: ja/nein
A259: 142 | B259: 58 | C259: Schuhputzservice | D259: 7 | E259: ja/nein
C261: Badezimmer | E261: Bewertung | F261: Kommentar
A262: 143 | B262: 59 | C262: Atmosphäre (Wohlfühlcharakter) | D262: 7 | E262: 1-7
A263: 144 | B263: 60 | C263: Entsprechende Ausstattung | D263: 7 | E263: 1-7
A264: 145 | B264: 61 | C264: Helligkeit | D264: 7 | E264: 1-7
A265: 146 | B265: 62 | C265: Einwandfreie Hygiene und Sauberkeit | D265: 7 | E265: ja/nein
A266: 147 | B266: 63 | C266: Böden in der Dusche/ Wanne aus rutschfestem Material | D266: 7 | E266: ja/nein
A267: 148 | B267: 64 | C267: Einfach handhabbare Wasserhähne | D267: 7 | E267: ja/nein
A268: 149 | B268: 65 | C268: Pro Person ein einwandfreies Zahnputzglas (oder Zahnbürstenhalter) | D268: 7 | E268: ja/nein
A269: 150 | B269: 66 | C269: Mindestens ein qualitativ einwandfreies Handtuch pro Person | D269: 7 | E269: ja/nein
A270: 151 | B270: 67 | C270: Mindestens ein qualitativ einwandfreies Badetuch pro Person | D270: 7 | E270: ja/nein
A271: 152 | B271: 68 | C271: Badvorleger aus Textil | D271: 7 | E271: ja/nein
... 332 more rows

Sheet Tacho Freizeit + Tagung (hidden)
A1: Segment 1 (rot) | B1: 1
A2: Segment 2 | B2: 1
A3: Segment 3 | B3: 1
A4: Segment 4 | B4: 1
A5: Segment 5 | B5: 1
A6: Segment 6 | B6: 1
A7: Segment 7 (grün) | B7: 1
A8: Unsichtbar | B8: 7
A10: Zeiger | B10: ='Freizeit + Tagung'!D644 -> 7
A11: Rest | B11: =7-B10 -> 0
A12: Unsichtbar | B12: 7

Sheet Tagung + SPA
C7: Fachverband Hotellerie
C11: Fragenkatalog für Mystery Guest-Check
C18: Arbeitsunterlage 2025-2030
C24: Dies ist die Auflistung der erforderlichen Prüfkriterien für Firmen, die einen Mystery-Test im Rahmen der Österreichischen Hotelklassifizierung durchführen. Über die Listung einer Firma entscheidet die Lenkungskommission bzw. der Fachverband Hotellerie nach Prüfung der Voraussetzungen.
C27: Bewertung
C29: ja / überdurchschnittlich erfülltes Kriterium | D29: 7
C30: gut bis sehr gut erfülltes Kriterium | D30: 6
C31: erfülltes Kriterium | D31: 5
C32: mittelmäßig erfülltes Kriterium | D32: 4
C33: teilweise erfülltes Kriterium | D33: 3
C34: zu kleinen Teilen erfülltes Kriterium | D34: 2
C35: nein / negativ erfülltes Kriterium | D35: 1
C38: Gesamtbewertung des Betriebs
C63: 1. Web-Auftritt
E64: Bewertung | F64: Kommentar
A65: 1 | B65: 1 | C65: Nachvollziehbare bzw. leicht auffindbare Webadresse | D65: 7 | E65: ja/nein
A66: 2 | B66: 2 | C66: Funktionieren alle Links | D66: 7 | E66: ja/nein
A67: 3 | B67: 3 | C67: Übersichtlichkeit, Struktur | D67: 7 | E67: 1-7
A68: 4 | B68: 4 | C68: Such-Funktion | D68: 7 | E68: ja/nein
A69: 5 | B69: 5 | C69: Integriertes Gästefeedback | D69: 7 | E69: ja/nein
A70: 6 | B70: 6 | C70: Verständlichkeit des Inhalts | D70: 7 | E70: ja/nein
A71: 7 | B71: 7 | C71: Aussagekräftiger, realistischer Auftritt mit Hotelbildern | D71: 7 | E71: ja/nein
A72: 8 | B72: 8 | C72: Aktualität (inkl. Kernöffnungszeiten Rezeption (1*-3*), wenn auf Buchungsbestätigung nicht angegeben; Öffnungstage Restaurant (1*-4* verpflichtend) sowie Öffnungszeiten der Sport-/Erholungs- und Wellnessbereich) | D72: 7 | E72: ja/nein
A73: 9 | B73: 9 | C73: Impressum | D73: 7 | E73: ja/nein
A74: 10 | B74: 10 | C74: Übersetzung in mindestens eine Fremdsprache (ab 1* verpflichtend) - automatische Übersetzung genügt | D74: 7 | E74: ja/nein
A75: 11 | B75: 11 | C75: Kontaktangabe (Email, Telefon, etc.) | D75: 7 | E75: ja/nein
A76: 12 | B76: 12 | C76: Online-Buchbarkeit auf eigener Website - benutzerfreundlich? | D76: 7 | E76: ja/nein
A77: 13 | B77: 13 | C77: Anfahrtsplan und Informationen über öffentliche Verkehrsanbindungen bzw. Transfermöglichkeiten | D77: 7 | E77: ja/nein
A78: 14 | B78: 14 | C78: Allgemeinen Geschäftsbedingungen, Stornobedingungen vorhanden | D78: 7 | E78: ja/nein
A79: 15 | B79: 15 | C79: Mobile Version der Website oder mobile Applikation | D79: 7 | E79: ja/nein
C80: Bewertung | D80: =SUM(D65:D79) -> 105
C81: Durchschnitt | D81: =SUM(D80/B79) -> 7
C83: Kommentar
C86: 2. E-Mail
C88: Beantwortung Ihrer E-Mail Anfrage, | E88: Bewertung | F88: Kommentar
A89: 16 | B89: 1 | C89: Innerhalb … Stunden ab Anfrage (3*S - 12; 4*S - 8; 5*/5*S - 4) | D89: 7 | E89: ja/nein
A90: 17 | B90: 2 | C90: Qualität (Schreibstil, Wortwahl, korrekte Anrede, Rechtsschreibung) | D90: 7 | E90: 1-7
A91: 18 | B91: 3 | C91: Informationsgehalt (z.B. Zusatzangebote) | D91: 7 | E91: 1-7
A92: 19 | B92: 4 | C92: Individuelle Bearbeitung von Sonderanfragen | D92: 7 | E92: 1-7
A93: 20 | B93: 5 | C93: Bei Angebot: Angaben zu Stornobedingungen | D93: 7 | E93: ja/nein
A94: 21 | B94: 6 | C94: Angabe von Zahlungsmodalitäten | D94: 7 | E94: ja/nein
A95: 22 | B95: 7 | C95: Anfahrts-, Wegbeschreibung, öffentliche Anreisemöglichkeiten | D95: 7 | E95: ja/nein
C96: Reservierungs-Bestätigung (E-Mail, Fax) als Antwort auf Ihre Buchung | F96: Kommentar
A97: 23 | B97: 8 | C97: Innerhalb … Stunden ab Reservierung (3*S - 24; 4*S - 12; 5*/5*S - 8) | D97: 7 | E97: ja/nein
A98: 24 | B98: 9 | C98: Qualität (Schreibstil, Wortwahl, korrekte Anrede, Rechtsschreibung) | D98: 7 | E98: 1-7
A99: 25 | B99: 10 | C99: Informationsgehalt (u.a. Aktuelle Anfahrtsbeschreibung) | D99: 7 | E99: 1-7
C100: Bewertung | D100: =SUM(D87:D99) -> 70
C101: Durchschnitt | D101: =SUM(D100/B99) -> 7
C103: Kommentar
C106: 3. Telefon
E107: Bewertung | F107: Kommentar
A108: 26 | B108: 1 | C108: Wartezeit (3*S - 1 Min; 4*S - 30 Sek; 5*/5*S - 15 Sek) | D108: 7 | E108: ja/nein
A109: 27 | B109: 2 | C109: Während der Wartezeit Text- bzw. Tonschleife | D109: 7 | E109: ja/nein
A110: 28 | B110: 3 | C110: Herzlichkeit | D110: 7 | E110: 1-7
A111: 29 | B111: 4 | C111: Klare deutliche Stimme und verständliche Aussprache | D111: 7 | E111: 1-7
A112: 30 | B112: 5 | C112: Anfragebeantwortung auf Deutsch (Rückruf ebenfalls aktzeptabel) | D112: 7 | E112: ja/nein
A113: 31 | B113: 6 | C113: Mit Namen angesprochen | D113: 7 | E113: ja/nein
A114: 32 | B114: 7 | C114: Vollständige Datenaufnahme (z.B. Name, Adresse, Tel, Email-Nachfrage) | D114: 7 | E114: ja/nein
A115: 33 | B115: 8 | C115: Fachliche Kompetenz | D115: 7 | E115: 1-7
A116: 34 | B116: 9 | C116: An- und Abreisedatum wiederholt und bestätigt | D116: 7 | E116: ja/nein
A117: 35 | B117: 10 | C117: Individuelle Bearbeitung von Sonderanfragen | D117: 7 | E117: 1-7
A118: 36 | B118: 11 | C118: Informationen über Check-in-Zeiten | D118: 7 | E118: ja/nein
A119: 37 | B119: 12 | C119: Aktives Anbieten von Zusatzleistungen | D119: 7 | E119: ja/nein
A120: 38 | B120: 13 | C120: Hinweis auf Stornobedingungen bei telefonischer Buchung | D120: 7 | E120: ja/nein
A121: 39 | B121: 14 | C121: Freundliche Verabschiedung und Dank | D121: 7 | E121: 1-7
C122: Bewertung | D122: =SUM(D108:D121) -> 98
C123: Durchschnitt | D123: =SUM(D122/B121) -> 7
C124: Kommentar
C126: 4. Anreise und Außenanlage
E127: Bewertung | F127: Kommentar
A128: 40 | B128: 1 | C128: Auffindbarkeit (z.B. Beschilderung im Ort) | D128: 7 | E128: 1-7
A129: 41 | B129: 2 | C129: Zufahrtsmöglichkeit bis zum Eingang | D129: 7 | E129: ja/nein
A130: 42 | B130: 3 | C130: Park- bzw. Garagenplätze (Zustand, Größe, ausreichende Anzahl etc.) | D130: 7 | E130: 1-7
A131: 43 | B131: 4 | C131: Beleuchtung des gesamten Außenbereichs inkl. Park- bzw. Garagenplätze | D131: 7 | E131: 1-7
A132: 44 | B132: 5 | C132: Gepäckservice | D132: 7 | E132: ja/nein
A133: 45 | B133: 6 | C133: Beschilderung am Haus (z.B. Eingang, Garage, Skikeller etc.) | D133: 7 | E133: 1-7
A134: 46 | B134: 7 | C134: Sauberkeit und Zustand des Gebäudes sowie der Außenanlagen | D134: 7 | E134: 1-7
A135: 47 | B135: 8 | C135: Parkservice (z.B. Doorman, Wagenmeister) | D135: 7 | E135: ja/nein
A136: 48 | B136: 9 | C136: Angebot zur leichteren Ermöglichung der öffentlichen Anreise (z.B. Transfer) | D136: 7 | E136: 1-7
C137: Bewertung | D137: =SUM(D128:D136) -> 63
C138: Durchschnitt | D138: =SUM(D137/B136) -> 7
C140: Kommentar
C143: 5. Check-In
C145: Eingangsbereich & Lobby | E145: Bewertung | F145: Kommentar
A146: 49 | B146: 1 | C146: Raumklima (Geruch) | D146: 7 | E146: 1-7
A147: 50 | B147: 2 | C147: Raumtemperatur | D147: 7 | E147: 1-7
A148: 51 | B148: 3 | C148: Beleuchtung ausreichend und ansprechend | D148: 7 | E148: 1-7
A149: 52 | B149: 4 | C149: Ambiente/Atmosphäre | D149: 7 | E149: 1-7
A150: 53 | B150: 5 | C150: Entsprechend qualitatives Mobiliar | D150: 7 | E150: 1-7
A151: 54 | B151: 6 | C151: Sauberkeit und Ordnung insb. Check-In-Bereich (Front Office) | D151: 7 | E151: ja/nein
A152: 55 | B152: 7 | C152: Stimmige Dekorationen | D152: 7 | E152: 1-7
A153: 56 | B153: 8 | C153: Großzügiger Sitzbereich für Gäste | D153: 7 | E153: ja/nein
C155: Front Office Mitarbeiter | E155: Bewertung | F155: Kommentar
A156: 57 | B156: 9 | C156: Anwesenheit | D156: 7 | E156: ja/nein
A157: 58 | B157: 10 | C157: Begrüßung (z.B. Welcome Drink) | D157: 7 | E157: ja/nein
A158: 59 | B158: 11 | C158: Herzlichkeit, Freundlichkeit | D158: 7 | E158: 1-7
A159: 60 | B159: 12 | C159: Erscheinungsbild Mitarbeiter (z.B. Uniform, Namensschild) | D159: 7 | E159: 1-7
A160: 61 | B160: 13 | C160: Fachkompetenz | D160: 7 | E160: 1-7
A161: 62 | B161: 14 | C161: Fremdsprachenkenntnisse (Deutsch + mind. eine Fremdsprache - ab 3* verpflichtend) | D161: 7 | E161: ja/nein
A162: 63 | B162: 15 | C162: Aufmerksamkeit, Sorgfältigkeit, Hilfsbereitschaft | D162: 7 | E162: 1-7
A163: 64 | B163: 16 | C163: Effizienz (Schnelligkeit, Flexibilität) | D163: 7 | E163: 1-7
A164: 65 | B164: 17 | C164: Klare, gut verständliche Aussprache | D164: 7 | E164: 1-7
A165: 66 | B165: 18 | C165: Gast mit Namen angesprochen | D165: 7 | E165: ja/nein
A166: 67 | B166: 19 | C166: Vorbereiteter Meldezettel | D166: 7 | E166: ja/nein
A167: 68 | B167: 20 | C167: Gepäcksservice angeboten | D167: 7 | E167: ja/nein
A168: 69 | B168: 21 | C168: Begleitung auf das Zimmer angeboten | D168: 7 | E168: ja/nein
A169: 70 | B169: 22 | C169: Allgemeine Haus-Informationen angeboten bzw. gegeben | D169: 7 | E169: ja/nein
A170: 71 | B170: 23 | C170: Angenehmen Aufenthalt gewünscht | D170: 7 | E170: ja/nein
C172: Begleitung zum Zimmer | E172: Bewertung | F172: Kommentar
A173: 72 | B173: 24 | C173: Erscheinungsbild des Mitarbeiters | D173: 7 | E173: 1-7
A174: 73 | B174: 25 | C174: Freundlichkeit, Konversation | D174: 7 | E174: 1-7
C176: Rooming | E176: Bewertung | F176: Kommentar
A177: 74 | B177: 26 | C177: Hinweis auf Hauptschalter (für Strom im Zimmer) | D177: 7 | E177: ja/nein
A178: 75 | B178: 27 | C178: Hinweis auf Heizung oder Klimaanlage | D178: 7 | E178: ja/nein
A179: 76 | B179: 28 | C179: Kommunikationsgerät (z.B. Telefon, Tablet, QR Code) (schriftliche Infos ausreichend) (3*-4* auf Wunsch, 5* auf dem Zimmer) | D179: 7 | E179: ja/nein
A180: 77 | B180: 29 | C180: Telefonverzeichnis bzw. -nummern (für Zimmerservice) - schriftliche Infos ausreichend | D180: 7 | E180: ja/nein
A181: 78 | B181: 30 | C181: Minibar oder Maxibar (bis 4*) (schriftliche Infos ausreichend) | D181: 7 | E181: ja/nein
A182: 79 | B182: 31 | C182: Safe (schriftliche Infos ausreichend) | D182: 7 | E182: ja/nein
A183: 80 | B183: 32 | C183: Wäsche-Service (schriftliche Infos ausreichend) | D183: 7 | E183: ja/nein
A184: 81 | B184: 33 | C184: Bügel-Service (schriftliche Infos ausreichend) | D184: 7 | E184: ja/nein
A185: 82 | B185: 34 | C185: Öffnungszeiten Restaurant, Bar, Sport-/ Erholungs- und/oder Wellnessbereich (schriftliche Infos ausreichend) | D185: 7 | E185: ja/nein
A186: 83 | B186: 35 | C186: Zeitangabe Frühstück (schriftliche Infos ausreichend) | D186: 7 | E186: ja/nein
A187: 84 | B187: 36 | C187: Rezeption 24 Std. erreichbar und … Std. besetzt (3*S - 8 bzw. 10; 4*S - 14; 5*/5*S - 24) | D187: 7 | E187: ja/nein
C188: Bewertung | D188: =SUM(D146:D187) -> 252
C189: Durchschnitt | D189: =SUM(D188/B187) -> 7
C191: Kommentar
C193: 6. Zimmer
C195: Erster Eindruck und Allgemeiner Charakter | E195: Bewertung | F195: Kommentar
A196: 85 | B196: 1 | C196: Raumklima (Frischer Geruch) | D196: 7 | E196: 1-7
A197: 86 | B197: 2 | C197: Angenehme Temperatur | D197: 7 | E197: 1-7
A198: 87 | B198: 3 | C198: Atmosphäre (Wohlfühlcharakter) | D198: 7 | E198: 1-7
A199: 88 | B199: 4 | C199: Geräuschpegel (Ruhe) | D199: 7 | E199: 1-7
A200: 89 | B200: 5 | C200: Entsprechendes Mobiliar | D200: 7 | E200: 1-7
A201: 90 | B201: 6 | C201: Sauberkeit | D201: 7 | E201: 1-7
A202: 91 | B202: 7 | C202: Willkommensbrief/-karte | D202: 7 | E202: ja/nein
A203: 92 | B203: 8 | C203: Willkommensgruß (z.B. Blumen, Obst, Konfekt…) | D203: 7 | E203: ja/nein
A204: 93 | B204: 9 | C204: Türschloss in einwandfreiem Zustand | D204: 7 | E204: ja/nein
C206: Das Bett | E206: Bewertung | F206: Kommentar
A207: 94 | B207: 10 | C207: Dem Hotelstandard angemessen | D207: 7 | E207: ja/nein
A208: 95 | B208: 11 | C208: Qualität der Bettbezüge angemessen | D208: 7 | E208: ja/nein
A209: 96 | B209: 12 | C209: Matratze/Liegekomfort | D209: 7 | E209: 1-7
A210: 97 | B210: 13 | C210: Bettdecken der Jahreszeit angepasst | D210: 7 | E210: ja/nein
A211: 98 | B211: 14 | C211: Zusatzkopfkissen auf Wunsch (kein Zierkissen) | D211: 7 | E211: ja/nein
A212: 99 | B212: 15 | C212: Zusatzdecke auf Wunsch | D212: 7 | E212: ja/nein
A213: 100 | B213: 16 | C213: Zwei Kopfkissen pro Gast (kein Zierkissen) | D213: 7 | E213: ja/nein
A214: 101 | B214: 17 | C214: Auswahl verschiedener Kopfkissen | D214: 7 | E214: ja/nein
A215: 102 | B215: 18 | C215: Allergikerfreundliche Bettwäsche und Einlagen auf Wunsch | D215: 7 | E215: ja/nein
A216: 103 | B216: 19 | C216: Hygienebezüge (Matratzen und/oder Kopfkissen) | D216: 7 | E216: ja/nein
C218: Einrichtung | E218: Bewertung | F218: Kommentar
A219: 104 | B219: 20 | C219: Qualität und Zustand der Vorhänge | D219: 7 | E219: 1-7
A220: 105 | B220: 21 | C220: Verdunkelung mit Vorhängen möglich | D220: 7 | E220: ja/nein
A221: 106 | B221: 22 | C221: Schalter, Steckdosen leicht erreichbar und zugänglich (nicht durch andere Geräte belegt) | D221: 7 | E221: ja/nein
A222: 107 | B222: 23 | C222: Einwandfreie Wände | D222: 7 | E222: 1-7
A223: 108 | B223: 24 | C223: Einwandfreie Beleuchtung | D223: 7 | E223: 1-7
A224: 109 | B224: 25 | C224: Einwandfreie Einrichtung (Mobiliar) | D224: 7 | E224: ja/nein
A225: 110 | B225: 26 | C225: Angemessene Anzahl einheitlicher Kleiderbügel (kein Draht) bis inkl. 3*; verschiedene Bügelarten 4*, 5*; | D225: 7 | E225: ja/nein
A226: 111 | B226: 27 | C226: Geräumige Ablagemöglichkeiten | D226: 7 | E226: ja/nein
A227: 112 | B227: 28 | C227: Geräumige Hängevorrichtung in den Kästen | D227: 7 | E227: ja/nein
A228: 113 | B228: 29 | C228: Ist die permanent Strom führende Steckdose gekennzeichnet? | D228: 7 | E228: ja/nein
A229: 114 | B229: 30 | C229: Ist auf dem Schreibtisch ausreichend Platz für einen Laptop? | D229: 7 | E229: ja/nein
C231: Ausstattung und Services | E231: Bewertung | F231: Kommentar
A232: 115 | B232: 31 | C232: funktionstüchtige Audio- / Multimedia Unterhaltung (z.B. Radio, Streaming-Dienste) | D232: 7 | E232: ja/nein
A233: 116 | B233: 32 | C233: TV-Programme gut eingestellt | D233: 7 | E233: ja/nein
A234: 117 | B234: 33 | C234: Monitor (TV) in für Raumgröße angemessener Größe | D234: 7 | E234: 1-7
A235: 118 | B235: 34 | C235: Kommunikationsgerät mit interner und externer Telefonfunktion (3*-4* auf Wunsch, 5* auf dem Zimmer) | D235: 7 | E235: ja/nein
A236: 119 | B236: 35 | C236: Bedienungsanleitung für das Kommunikationsgerät (ab 5* zweisprachig verpflichtend) | D236: 7 | E236: ja/nein
A237: 120 | B237: 36 | C237: Schreibblock und einem Bleistift neben Telefon | D237: 7 | E237: ja/nein
A238: 121 | B238: 37 | C238: WLAN Internetzugang auf den Zimmern | D238: 7 | E238: ja/nein
A239: 122 | B239: 38 | C239: Druckmöglichkeit auf Wunsch | D239: 7 | E239: ja/nein
A240: 123 | B240: 39 | C240: Einwandfreie Funktionalität aller elektrischen Einrichtungen (z.B. Licht, TV, Fön) | D240: 7 | E240: ja/nein
A241: 124 | B241: 40 | C241: Safe im Zimmer (ab 5* verpflichtend) | D241: 7 | E241: ja/nein
A242: 125 | B242: 41 | C242: "Bitte nicht stören/Bitte aufräumen" Angabemöglichkeit vorhanden | D242: 7 | E242: ja/nein
A243: 126 | B243: 42 | C243: "Bitte nicht aufräumen" (opt-out von Zimmerreinigung) | D243: 7 | E243: ja/nein
A244: 127 | B244: 43 | C244: Aktualität des Infomaterials (gedruckt oder digital) | D244: 7 | E244: ja/nein
A245: 128 | B245: 44 | C245: Sicherheitsbestimmungen (z.B. Brandschutz, Fluchtwege) sichtbar | D245: 7 | E245: ja/nein
A246: 129 | B246: 45 | C246: Aktuelles Medienangebot (Zeitschriften und/oder Magazine - gedruckt oder digital) | D246: 7 | E246: 1-7
A247: 130 | B247: 46 | C247: Zweisprachiger Serviceleitfaden (gedruckt oder digital) | D247: 7 | E247: ja/nein
A248: 131 | B248: 47 | C248: Internationaler Steckdosenadapter, Ladegeräte/Adapter auf Wunsch (z.B. für elektr. Geräte wie Handys, Tabletts...) ab 1* verpflichtend | D248: 7 | E248: ja/nein
A249: 132 | B249: 48 | C249: Pro Bett ein Trinkglas auf Untersetzer (z.B. Serviette) | D249: 7 | E249: ja/nein
A250: 133 | B250: 49 | C250: Angebote in Minibar (Getränke, Snacks - 5* verpflichtend) | D250: 7 | E250: 1-7
A251: 134 | B251: 50 | C251: sind ausreichend Sitzgelegenheiten vorhanden? | D251: 7 | E251: ja/nein
A252: 135 | B252: 51 | C252: Qualität der Sitzgelegeneheiten | D252: 7 | E252: 1-7
A253: 136 | B253: 52 | C253: Getränke im Roomservice mit Getränkekarte (4* - 12h; 5* - 24h) | D253: 7 | E253: 1-7
A254: 137 | B254: 53 | C254: Speisen im Roomservice mit Speisekarte (4* - 12h; 5* - 24h) | D254: 7 | E254: 1-7
A255: 138 | B255: 54 | C255: Frühstückskarte im Roomservice | D255: 7 | E255: ja/nein
A256: 139 | B256: 55 | C256: Wäschereiservice | D256: 7 | E256: ja/nein
A257: 140 | B257: 56 | C257: Bügelservice | D257: 7 | E257: ja/nein
A258: 141 | B258: 57 | C258: Nähservice | D258: 7 | E258: ja/nein
A259: 142 | B259: 58 | C259: Schuhputzservice | D259: 7 | E259: ja/nein
C261: Badezimmer | E261: Bewertung | F261: Kommentar
A262: 143 | B262: 59 | C262: Atmosphäre (Wohlfühlcharakter) | D262: 7 | E262: 1-7
A263: 144 | B263: 60 | C263: Entsprechende Ausstattung | D263: 7 | E263: 1-7
A264: 145 | B264: 61 | C264: Helligkeit | D264: 7 | E264: 1-7
A265: 146 | B265: 62 | C265: Einwandfreie Hygiene und Sauberkeit | D265: 7 | E265: ja/nein
A266: 147 | B266: 63 | C266: Böden in der Dusche/ Wanne aus rutschfestem Material | D266: 7 | E266: ja/nein
A267: 148 | B267: 64 | C267: Einfach handhabbare Wasserhähne | D267: 7 | E267: ja/nein
A268: 149 | B268: 65 | C268: Pro Person ein einwandfreies Zahnputzglas (oder Zahnbürstenhalter) | D268: 7 | E268: ja/nein
A269: 150 | B269: 66 | C269: Mindestens ein qualitativ einwandfreies Handtuch pro Person | D269: 7 | E269: ja/nein
A270: 151 | B270: 67 | C270: Mindestens ein qualitativ einwandfreies Badetuch pro Person | D270: 7 | E270: ja/nein
A271: 152 | B271: 68 | C271: Badvorleger aus Textil | D271: 7 | E271: ja/nein
... 335 more rows

Sheet Tacho Tagung + SPA (hidden)
A1: Segment 1 (rot) | B1: 1
A2: Segment 2 | B2: 1
A3: Segment 3 | B3: 1
A4: Segment 4 | B4: 1
A5: Segment 5 | B5: 1
A6: Segment 6 | B6: 1
A7: Segment 7 (grün) | B7: 1
A8: Unsichtbar | B8: 7
A10: Zeiger | B10: ='Tagung + SPA'!D645 -> 7
A11: Rest | B11: =7-B10 -> 0
A12: Unsichtbar | B12: 7

Sheet SPA
C7: Fachverband Hotellerie
C11: Fragenkatalog für Mystery Guest-Check
C18: Arbeitsunterlage 2025-2030
C24: Dies ist die Auflistung der erforderlichen Prüfkriterien für Firmen, die einen Mystery-Test im Rahmen der Österreichischen Hotelklassifizierung durchführen. Über die Listung einer Firma entscheidet die Lenkungskommission bzw. der Fachverband Hotellerie nach Prüfung der Voraussetzungen.
C27: Bewertung
C29: ja / überdurchschnittlich erfülltes Kriterium | D29: 7
C30: gut bis sehr gut erfülltes Kriterium | D30: 6
C31: erfülltes Kriterium | D31: 5
C32: mittelmäßig erfülltes Kriterium | D32: 4
C33: teilweise erfülltes Kriterium | D33: 3
C34: zu kleinen Teilen erfülltes Kriterium | D34: 2
C35: nein / negativ erfülltes Kriterium | D35: 1
C38: Gesamtbewertung des Betriebs
C63: 1. Web-Auftritt
E64: Bewertung | F64: Kommentar
A65: 1 | B65: 1 | C65: Nachvollziehbare bzw. leicht auffindbare Webadresse | D65: 7 | E65: ja/nein
A66: 2 | B66: 2 | C66: Funktionieren alle Links | D66: 7 | E66: ja/nein
A67: 3 | B67: 3 | C67: Übersichtlichkeit, Struktur | D67: 7 | E67: 1-7
A68: 4 | B68: 4 | C68: Such-Funktion | D68: 7 | E68: ja/nein
A69: 5 | B69: 5 | C69: Integriertes Gästefeedback | D69: 7 | E69: ja/nein
A70: 6 | B70: 6 | C70: Verständlichkeit des Inhalts | D70: 7 | E70: ja/nein
A71: 7 | B71: 7 | C71: Aussagekräftiger, realistischer Auftritt mit Hotelbildern | D71: 7 | E71: ja/nein
A72: 8 | B72: 8 | C72: Aktualität (inkl. Kernöffnungszeiten Rezeption (1*-3*), wenn auf Buchungsbestätigung nicht angegeben; Öffnungstage Restaurant (1*-4* verpflichtend) sowie Öffnungszeiten der Sport-/Erholungs- und Wellnessbereich) | D72: 7 | E72: ja/nein
A73: 9 | B73: 9 | C73: Impressum | D73: 7 | E73: ja/nein
A74: 10 | B74: 10 | C74: Übersetzung in mindestens eine Fremdsprache (ab 1* verpflichtend) - automatische Übersetzung genügt | D74: 7 | E74: ja/nein
A75: 11 | B75: 11 | C75: Kontaktangabe (Email, Telefon, etc.) | D75: 7 | E75: ja/nein
A76: 12 | B76: 12 | C76: Online-Buchbarkeit auf eigener Website - benutzerfreundlich? | D76: 7 | E76: ja/nein
A77: 13 | B77: 13 | C77: Anfahrtsplan und Informationen über öffentliche Verkehrsanbindungen bzw. Transfermöglichkeiten | D77: 7 | E77: ja/nein
A78: 14 | B78: 14 | C78: Allgemeinen Geschäftsbedingungen, Stornobedingungen vorhanden | D78: 7 | E78: ja/nein
A79: 15 | B79: 15 | C79: Mobile Version der Website oder mobile Applikation | D79: 7 | E79: ja/nein
C80: Bewertung | D80: =SUM(D65:D79) -> 105
C81: Durchschnitt | D81: =SUM(D80/B79) -> 7
C83: Kommentar
C86: 2. E-Mail
C88: Beantwortung Ihrer E-Mail Anfrage, | E88: Bewertung | F88: Kommentar
A89: 16 | B89: 1 | C89: Innerhalb … Stunden ab Anfrage (3*S - 12; 4*S - 8; 5*/5*S - 4) | D89: 7 | E89: ja/nein
A90: 17 | B90: 2 | C90: Qualität (Schreibstil, Wortwahl, korrekte Anrede, Rechtsschreibung) | D90: 7 | E90: 1-7
A91: 18 | B91: 3 | C91: Informationsgehalt (z.B. Zusatzangebote) | D91: 7 | E91: 1-7
A92: 19 | B92: 4 | C92: Individuelle Bearbeitung von Sonderanfragen | D92: 7 | E92: 1-7
A93: 20 | B93: 5 | C93: Bei Angebot: Angaben zu Stornobedingungen | D93: 7 | E93: ja/nein
A94: 21 | B94: 6 | C94: Angabe von Zahlungsmodalitäten | D94: 7 | E94: ja/nein
A95: 22 | B95: 7 | C95: Anfahrts-, Wegbeschreibung, öffentliche Anreisemöglichkeiten | D95: 7 | E95: ja/nein
C96: Reservierungs-Bestätigung (E-Mail, Fax) als Antwort auf Ihre Buchung | F96: Kommentar
A97: 23 | B97: 8 | C97: Innerhalb … Stunden ab Reservierung (3*S - 24; 4*S - 12; 5*/5*S - 8) | D97: 7 | E97: ja/nein
A98: 24 | B98: 9 | C98: Qualität (Schreibstil, Wortwahl, korrekte Anrede, Rechtsschreibung) | D98: 7 | E98: 1-7
A99: 25 | B99: 10 | C99: Informationsgehalt (u.a. Aktuelle Anfahrtsbeschreibung) | D99: 7 | E99: 1-7
C100: Bewertung | D100: =SUM(D87:D99) -> 70
C101: Durchschnitt | D101: =SUM(D100/B99) -> 7
C103: Kommentar
C106: 3. Telefon
E107: Bewertung | F107: Kommentar
A108: 26 | B108: 1 | C108: Wartezeit (3*S - 1 Min; 4*S - 30 Sek; 5*/5*S - 15 Sek) | D108: 7 | E108: ja/nein
A109: 27 | B109: 2 | C109: Während der Wartezeit Text- bzw. Tonschleife | D109: 7 | E109: ja/nein
A110: 28 | B110: 3 | C110: Herzlichkeit | D110: 7 | E110: 1-7
A111: 29 | B111: 4 | C111: Klare deutliche Stimme und verständliche Aussprache | D111: 7 | E111: 1-7
A112: 30 | B112: 5 | C112: Anfragebeantwortung auf Deutsch (Rückruf ebenfalls aktzeptabel) | D112: 7 | E112: ja/nein
A113: 31 | B113: 6 | C113: Mit Namen angesprochen | D113: 7 | E113: ja/nein
A114: 32 | B114: 7 | C114: Vollständige Datenaufnahme (z.B. Name, Adresse, Tel, Email-Nachfrage) | D114: 7 | E114: ja/nein
A115: 33 | B115: 8 | C115: Fachliche Kompetenz | D115: 7 | E115: 1-7
A116: 34 | B116: 9 | C116: An- und Abreisedatum wiederholt und bestätigt | D116: 7 | E116: ja/nein
A117: 35 | B117: 10 | C117: Individuelle Bearbeitung von Sonderanfragen | D117: 7 | E117: 1-7
A118: 36 | B118: 11 | C118: Informationen über Check-in-Zeiten | D118: 7 | E118: ja/nein
A119: 37 | B119: 12 | C119: Aktives Anbieten von Zusatzleistungen | D119: 7 | E119: ja/nein
A120: 38 | B120: 13 | C120: Hinweis auf Stornobedingungen bei telefonischer Buchung | D120: 7 | E120: ja/nein
A121: 39 | B121: 14 | C121: Freundliche Verabschiedung und Dank | D121: 7 | E121: 1-7
C122: Bewertung | D122: =SUM(D108:D121) -> 98
C123: Durchschnitt | D123: =SUM(D122/B121) -> 7
C124: Kommentar
C126: 4. Anreise und Außenanlage
E127: Bewertung | F127: Kommentar
A128: 40 | B128: 1 | C128: Auffindbarkeit (z.B. Beschilderung im Ort) | D128: 7 | E128: 1-7
A129: 41 | B129: 2 | C129: Zufahrtsmöglichkeit bis zum Eingang | D129: 7 | E129: ja/nein
A130: 42 | B130: 3 | C130: Park- bzw. Garagenplätze (Zustand, Größe, ausreichende Anzahl etc.) | D130: 7 | E130: 1-7
A131: 43 | B131: 4 | C131: Beleuchtung des gesamten Außenbereichs inkl. Park- bzw. Garagenplätze | D131: 7 | E131: 1-7
A132: 44 | B132: 5 | C132: Gepäckservice | D132: 7 | E132: ja/nein
A133: 45 | B133: 6 | C133: Beschilderung am Haus (z.B. Eingang, Garage, Skikeller etc.) | D133: 7 | E133: 1-7
A134: 46 | B134: 7 | C134: Sauberkeit und Zustand des Gebäudes sowie der Außenanlagen | D134: 7 | E134: 1-7
A135: 47 | B135: 8 | C135: Parkservice (z.B. Doorman, Wagenmeister) | D135: 7 | E135: ja/nein
A136: 48 | B136: 9 | C136: Angebot zur leichteren Ermöglichung der öffentlichen Anreise (z.B. Transfer) | D136: 7 | E136: 1-7
C137: Bewertung | D137: =SUM(D128:D136) -> 63
C138: Durchschnitt | D138: =SUM(D137/B136) -> 7
C140: Kommentar
C143: 5. Check-In
C145: Eingangsbereich & Lobby | E145: Bewertung | F145: Kommentar
A146: 49 | B146: 1 | C146: Raumklima (Geruch) | D146: 7 | E146: 1-7
A147: 50 | B147: 2 | C147: Raumtemperatur | D147: 7 | E147: 1-7
A148: 51 | B148: 3 | C148: Beleuchtung ausreichend und ansprechend | D148: 7 | E148: 1-7
A149: 52 | B149: 4 | C149: Ambiente/Atmosphäre | D149: 7 | E149: 1-7
A150: 53 | B150: 5 | C150: Entsprechend qualitatives Mobiliar | D150: 7 | E150: 1-7
A151: 54 | B151: 6 | C151: Sauberkeit und Ordnung insb. Check-In-Bereich (Front Office) | D151: 7 | E151: ja/nein
A152: 55 | B152: 7 | C152: Stimmige Dekorationen | D152: 7 | E152: 1-7
A153: 56 | B153: 8 | C153: Großzügiger Sitzbereich für Gäste | D153: 7 | E153: ja/nein
C155: Front Office Mitarbeiter | E155: Bewertung | F155: Kommentar
A156: 57 | B156: 9 | C156: Anwesenheit | D156: 7 | E156: ja/nein
A157: 58 | B157: 10 | C157: Begrüßung (z.B. Welcome Drink) | D157: 7 | E157: ja/nein
A158: 59 | B158: 11 | C158: Herzlichkeit, Freundlichkeit | D158: 7 | E158: 1-7
A159: 60 | B159: 12 | C159: Erscheinungsbild Mitarbeiter (z.B. Uniform, Namensschild) | D159: 7 | E159: 1-7
A160: 61 | B160: 13 | C160: Fachkompetenz | D160: 7 | E160: 1-7
A161: 62 | B161: 14 | C161: Fremdsprachenkenntnisse (Deutsch + mind. eine Fremdsprache - ab 3* verpflichtend) | D161: 7 | E161: ja/nein
A162: 63 | B162: 15 | C162: Aufmerksamkeit, Sorgfältigkeit, Hilfsbereitschaft | D162: 7 | E162: 1-7
A163: 64 | B163: 16 | C163: Effizienz (Schnelligkeit, Flexibilität) | D163: 7 | E163: 1-7
A164: 65 | B164: 17 | C164: Klare, gut verständliche Aussprache | D164: 7 | E164: 1-7
A165: 66 | B165: 18 | C165: Gast mit Namen angesprochen | D165: 7 | E165: ja/nein
A166: 67 | B166: 19 | C166: Vorbereiteter Meldezettel | D166: 7 | E166: ja/nein
A167: 68 | B167: 20 | C167: Gepäcksservice angeboten | D167: 7 | E167: ja/nein
A168: 69 | B168: 21 | C168: Begleitung auf das Zimmer angeboten | D168: 7 | E168: ja/nein
A169: 70 | B169: 22 | C169: Allgemeine Haus-Informationen angeboten bzw. gegeben | D169: 7 | E169: ja/nein
A170: 71 | B170: 23 | C170: Angenehmen Aufenthalt gewünscht | D170: 7 | E170: ja/nein
C172: Begleitung zum Zimmer | E172: Bewertung | F172: Kommentar
A173: 72 | B173: 24 | C173: Erscheinungsbild des Mitarbeiters | D173: 7 | E173: 1-7
A174: 73 | B174: 25 | C174: Freundlichkeit, Konversation | D174: 7 | E174: 1-7
C176: Rooming | E176: Bewertung | F176: Kommentar
A177: 74 | B177: 26 | C177: Hinweis auf Hauptschalter (für Strom im Zimmer) | D177: 7 | E177: ja/nein
A178: 75 | B178: 27 | C178: Hinweis auf Heizung oder Klimaanlage | D178: 7 | E178: ja/nein
A179: 76 | B179: 28 | C179: Kommunikationsgerät (z.B. Telefon, Tablet, QR Code) (schriftliche Infos ausreichend) (3*-4* auf Wunsch, 5* auf dem Zimmer) | D179: 7 | E179: ja/nein
A180: 77 | B180: 29 | C180: Telefonverzeichnis bzw. -nummern (für Zimmerservice) - schriftliche Infos ausreichend | D180: 7 | E180: ja/nein
A181: 78 | B181: 30 | C181: Minibar oder Maxibar (bis 4*) (schriftliche Infos ausreichend) | D181: 7 | E181: ja/nein
A182: 79 | B182: 31 | C182: Safe (schriftliche Infos ausreichend) | D182: 7 | E182: ja/nein
A183: 80 | B183: 32 | C183: Wäsche-Service (schriftliche Infos ausreichend) | D183: 7 | E183: ja/nein
A184: 81 | B184: 33 | C184: Bügel-Service (schriftliche Infos ausreichend) | D184: 7 | E184: ja/nein
A185: 82 | B185: 34 | C185: Öffnungszeiten Restaurant, Bar, Sport-/ Erholungs- und/oder Wellnessbereich (schriftliche Infos ausreichend) | D185: 7 | E185: ja/nein
A186: 83 | B186: 35 | C186: Zeitangabe Frühstück (schriftliche Infos ausreichend) | D186: 7 | E186: ja/nein
A187: 84 | B187: 36 | C187: Rezeption 24 Std. erreichbar und … Std. besetzt (3*S - 8 bzw. 10; 4*S - 14; 5*/5*S - 24) | D187: 7 | E187: ja/nein
C188: Bewertung | D188: =SUM(D146:D187) -> 252
C189: Durchschnitt | D189: =SUM(D188/B187) -> 7
C191: Kommentar
C193: 6. Zimmer
C195: Erster Eindruck und Allgemeiner Charakter | E195: Bewertung | F195: Kommentar
A196: 85 | B196: 1 | C196: Raumklima (Frischer Geruch) | D196: 7 | E196: 1-7
A197: 86 | B197: 2 | C197: Angenehme Temperatur | D197: 7 | E197: 1-7
A198: 87 | B198: 3 | C198: Atmosphäre (Wohlfühlcharakter) | D198: 7 | E198: 1-7
A199: 88 | B199: 4 | C199: Geräuschpegel (Ruhe) | D199: 7 | E199: 1-7
A200: 89 | B200: 5 | C200: Entsprechendes Mobiliar | D200: 7 | E200: 1-7
A201: 90 | B201: 6 | C201: Sauberkeit | D201: 7 | E201: 1-7
A202: 91 | B202: 7 | C202: Willkommensbrief/-karte | D202: 7 | E202: ja/nein
A203: 92 | B203: 8 | C203: Willkommensgruß (z.B. Blumen, Obst, Konfekt…) | D203: 7 | E203: ja/nein
A204: 93 | B204: 9 | C204: Türschloss in einwandfreiem Zustand | D204: 7 | E204: ja/nein
C206: Das Bett | E206: Bewertung | F206: Kommentar
A207: 94 | B207: 10 | C207: Dem Hotelstandard angemessen | D207: 7 | E207: ja/nein
A208: 95 | B208: 11 | C208: Qualität der Bettbezüge angemessen | D208: 7 | E208: ja/nein
A209: 96 | B209: 12 | C209: Matratze/Liegekomfort | D209: 7 | E209: 1-7
A210: 97 | B210: 13 | C210: Bettdecken der Jahreszeit angepasst | D210: 7 | E210: ja/nein
A211: 98 | B211: 14 | C211: Zusatzkopfkissen auf Wunsch (kein Zierkissen) | D211: 7 | E211: ja/nein
A212: 99 | B212: 15 | C212: Zusatzdecke auf Wunsch | D212: 7 | E212: ja/nein
A213: 100 | B213: 16 | C213: Zwei Kopfkissen pro Gast (kein Zierkissen) | D213: 7 | E213: ja/nein
A214: 101 | B214: 17 | C214: Auswahl verschiedener Kopfkissen | D214: 7 | E214: ja/nein
A215: 102 | B215: 18 | C215: Allergikerfreundliche Bettwäsche und Einlagen auf Wunsch | D215: 7 | E215: ja/nein
A216: 103 | B216: 19 | C216: Hygienebezüge (Matratzen und/oder Kopfkissen) | D216: 7 | E216: ja/nein
C218: Einrichtung | E218: Bewertung | F218: Kommentar
A219: 104 | B219: 20 | C219: Qualität und Zustand der Vorhänge | D219: 7 | E219: 1-7
A220: 105 | B220: 21 | C220: Verdunkelung mit Vorhängen möglich | D220: 7 | E220: ja/nein
A221: 106 | B221: 22 | C221: Schalter, Steckdosen leicht erreichbar und zugänglich (nicht durch andere Geräte belegt) | D221: 7 | E221: ja/nein
A222: 107 | B222: 23 | C222: Einwandfreie Wände | D222: 7 | E222: 1-7
A223: 108 | B223: 24 | C223: Einwandfreie Beleuchtung | D223: 7 | E223: 1-7
A224: 109 | B224: 25 | C224: Einwandfreie Einrichtung (Mobiliar) | D224: 7 | E224: ja/nein
A225: 110 | B225: 26 | C225: Angemessene Anzahl einheitlicher Kleiderbügel (kein Draht) bis inkl. 3*; verschiedene Bügelarten 4*, 5*; | D225: 7 | E225: ja/nein
A226: 111 | B226: 27 | C226: Geräumige Ablagemöglichkeiten | D226: 7 | E226: ja/nein
A227: 112 | B227: 28 | C227: Geräumige Hängevorrichtung in den Kästen | D227: 7 | E227: ja/nein
A228: 113 | B228: 29 | C228: Ist die permanent Strom führende Steckdose gekennzeichnet? | D228: 7 | E228: ja/nein
A229: 114 | B229: 30 | C229: Ist auf dem Schreibtisch ausreichend Platz für einen Laptop? | D229: 7 | E229: ja/nein
C231: Ausstattung und Services | E231: Bewertung | F231: Kommentar
A232: 115 | B232: 31 | C232: funktionstüchtige Audio- / Multimedia Unterhaltung (z.B. Radio, Streaming-Dienste) | D232: 7 | E232: ja/nein
A233: 116 | B233: 32 | C233: TV-Programme gut eingestellt | D233: 7 | E233: ja/nein
A234: 117 | B234: 33 | C234: Monitor (TV) in für Raumgröße angemessener Größe | D234: 7 | E234: 1-7
A235: 118 | B235: 34 | C235: Kommunikationsgerät mit interner und externer Telefonfunktion (3*-4* auf Wunsch, 5* auf dem Zimmer) | D235: 7 | E235: ja/nein
A236: 119 | B236: 35 | C236: Bedienungsanleitung für das Kommunikationsgerät (ab 5* zweisprachig verpflichtend) | D236: 7 | E236: ja/nein
A237: 120 | B237: 36 | C237: Schreibblock und einem Bleistift neben Telefon | D237: 7 | E237: ja/nein
A238: 121 | B238: 37 | C238: WLAN Internetzugang auf den Zimmern | D238: 7 | E238: ja/nein
A239: 122 | B239: 38 | C239: Druckmöglichkeit auf Wunsch | D239: 7 | E239: ja/nein
A240: 123 | B240: 39 | C240: Einwandfreie Funktionalität aller elektrischen Einrichtungen (z.B. Licht, TV, Fön) | D240: 7 | E240: ja/nein
A241: 124 | B241: 40 | C241: Safe im Zimmer (ab 5* verpflichtend) | D241: 7 | E241: ja/nein
A242: 125 | B242: 41 | C242: "Bitte nicht stören/Bitte aufräumen" Angabemöglichkeit vorhanden | D242: 7 | E242: ja/nein
A243: 126 | B243: 42 | C243: "Bitte nicht aufräumen" (opt-out von Zimmerreinigung) | D243: 7 | E243: ja/nein
A244: 127 | B244: 43 | C244: Aktualität des Infomaterials (gedruckt oder digital) | D244: 7 | E244: ja/nein
A245: 128 | B245: 44 | C245: Sicherheitsbestimmungen (z.B. Brandschutz, Fluchtwege) sichtbar | D245: 7 | E245: ja/nein
A246: 129 | B246: 45 | C246: Aktuelles Medienangebot (Zeitschriften und/oder Magazine - gedruckt oder digital) | D246: 7 | E246: 1-7
A247: 130 | B247: 46 | C247: Zweisprachiger Serviceleitfaden (gedruckt oder digital) | D247: 7 | E247: ja/nein
A248: 131 | B248: 47 | C248: Internationaler Steckdosenadapter, Ladegeräte/Adapter auf Wunsch (z.B. für elektr. Geräte wie Handys, Tabletts...) ab 1* verpflichtend | D248: 7 | E248: ja/nein
A249: 132 | B249: 48 | C249: Pro Bett ein Trinkglas auf Untersetzer (z.B. Serviette) | D249: 7 | E249: ja/nein
A250: 133 | B250: 49 | C250: Angebote in Minibar (Getränke, Snacks - 5* verpflichtend) | D250: 7 | E250: 1-7
A251: 134 | B251: 50 | C251: sind ausreichend Sitzgelegenheiten vorhanden? | D251: 7 | E251: ja/nein
A252: 135 | B252: 51 | C252: Qualität der Sitzgelegeneheiten | D252: 7 | E252: 1-7
A253: 136 | B253: 52 | C253: Getränke im Roomservice mit Getränkekarte (4* - 12h; 5* - 24h) | D253: 7 | E253: 1-7
A254: 137 | B254: 53 | C254: Speisen im Roomservice mit Speisekarte (4* - 12h; 5* - 24h) | D254: 7 | E254: 1-7
A255: 138 | B255: 54 | C255: Frühstückskarte im Roomservice | D255: 7 | E255: ja/nein
A256: 139 | B256: 55 | C256: Wäschereiservice | D256: 7 | E256: ja/nein
A257: 140 | B257: 56 | C257: Bügelservice | D257: 7 | E257: ja/nein
A258: 141 | B258: 57 | C258: Nähservice | D258: 7 | E258: ja/nein
A259: 142 | B259: 58 | C259: Schuhputzservice | D259: 7 | E259: ja/nein
C261: Badezimmer | E261: Bewertung | F261: Kommentar
A262: 143 | B262: 59 | C262: Atmosphäre (Wohlfühlcharakter) | D262: 7 | E262: 1-7
A263: 144 | B263: 60 | C263: Entsprechende Ausstattung | D263: 7 | E263: 1-7
A264: 145 | B264: 61 | C264: Helligkeit | D264: 7 | E264: 1-7
A265: 146 | B265: 62 | C265: Einwandfreie Hygiene und Sauberkeit | D265: 7 | E265: ja/nein
A266: 147 | B266: 63 | C266: Böden in der Dusche/ Wanne aus rutschfestem Material | D266: 7 | E266: ja/nein
A267: 148 | B267: 64 | C267: Einfach handhabbare Wasserhähne | D267: 7 | E267: ja/nein
A268: 149 | B268: 65 | C268: Pro Person ein einwandfreies Zahnputzglas (oder Zahnbürstenhalter) | D268: 7 | E268: ja/nein
A269: 150 | B269: 66 | C269: Mindestens ein qualitativ einwandfreies Handtuch pro Person | D269: 7 | E269: ja/nein
A270: 151 | B270: 67 | C270: Mindestens ein qualitativ einwandfreies Badetuch pro Person | D270: 7 | E270: ja/nein
A271: 152 | B271: 68 | C271: Badvorleger aus Textil | D271: 7 | E271: ja/nein
... 308 more rows

Sheet Tacho SPA (hidden)
A1: Segment 1 (rot) | B1: 1
A2: Segment 2 | B2: 1
A3: Segment 3 | B3: 1
A4: Segment 4 | B4: 1
A5: Segment 5 | B5: 1
A6: Segment 6 | B6: 1
A7: Segment 7 (grün) | B7: 1
A8: Unsichtbar | B8: 7
A10: Zeiger | B10: =SPA!D613 -> 7
A11: Rest | B11: =7-B10 -> 0
A12: Unsichtbar | B12: 7

Sheet Freizeit
C7: Fachverband Hotellerie
C11: Fragenkatalog für Mystery Guest-Check
C18: Arbeitsunterlage 2025-2030
C24: Dies ist die Auflistung der erforderlichen Prüfkriterien für Firmen, die einen Mystery-Test im Rahmen der Österreichischen Hotelklassifizierung durchführen. Über die Listung einer Firma entscheidet die Lenkungskommission bzw. der Fachverband Hotellerie nach Prüfung der Voraussetzungen.
C27: Bewertung
C29: ja / überdurchschnittlich erfülltes Kriterium | D29: 7
C30: gut bis sehr gut erfülltes Kriterium | D30: 6
C31: erfülltes Kriterium | D31: 5
C32: mittelmäßig erfülltes Kriterium | D32: 4
C33: teilweise erfülltes Kriterium | D33: 3
C34: zu kleinen Teilen erfülltes Kriterium | D34: 2
C35: nein / negativ erfülltes Kriterium | D35: 1
C38: Gesamtbewertung des Betriebs
C63: 1. Web-Auftritt
E64: Bewertung | F64: Kommentar
A65: 1 | B65: 1 | C65: Nachvollziehbare bzw. leicht auffindbare Webadresse | D65: 7 | E65: ja/nein
A66: 2 | B66: 2 | C66: Funktionieren alle Links | D66: 7 | E66: ja/nein
A67: 3 | B67: 3 | C67: Übersichtlichkeit, Struktur | D67: 7 | E67: 1-7
A68: 4 | B68: 4 | C68: Such-Funktion | D68: 7 | E68: ja/nein
A69: 5 | B69: 5 | C69: Integriertes Gästefeedback | D69: 7 | E69: ja/nein
A70: 6 | B70: 6 | C70: Verständlichkeit des Inhalts | D70: 7 | E70: ja/nein
A71: 7 | B71: 7 | C71: Aussagekräftiger, realistischer Auftritt mit Hotelbildern | D71: 7 | E71: ja/nein
A72: 8 | B72: 8 | C72: Aktualität (inkl. Kernöffnungszeiten Rezeption (1*-3*), wenn auf Buchungsbestätigung nicht angegeben; Öffnungstage Restaurant (1*-4* verpflichtend) sowie Öffnungszeiten der Sport-/Erholungs- und Wellnessbereich) | D72: 7 | E72: ja/nein
A73: 9 | B73: 9 | C73: Impressum | D73: 7 | E73: ja/nein
A74: 10 | B74: 10 | C74: Übersetzung in mindestens eine Fremdsprache (ab 1* verpflichtend) - automatische Übersetzung genügt | D74: 7 | E74: ja/nein
A75: 11 | B75: 11 | C75: Kontaktangabe (Email, Telefon, etc.) | D75: 7 | E75: ja/nein
A76: 12 | B76: 12 | C76: Online-Buchbarkeit auf eigener Website - benutzerfreundlich? | D76: 7 | E76: ja/nein
A77: 13 | B77: 13 | C77: Anfahrtsplan und Informationen über öffentliche Verkehrsanbindungen bzw. Transfermöglichkeiten | D77: 7 | E77: ja/nein
A78: 14 | B78: 14 | C78: Allgemeinen Geschäftsbedingungen, Stornobedingungen vorhanden | D78: 7 | E78: ja/nein
A79: 15 | B79: 15 | C79: Mobile Version der Website oder mobile Applikation | D79: 7 | E79: ja/nein
C80: Bewertung | D80: =SUM(D65:D79) -> 105
C81: Durchschnitt | D81: =SUM(D80/B79) -> 7
C83: Kommentar
C86: 2. E-Mail
C88: Beantwortung Ihrer E-Mail Anfrage, | E88: Bewertung | F88: Kommentar
A89: 16 | B89: 1 | C89: Innerhalb … Stunden ab Anfrage (3*S - 12; 4*S - 8; 5*/5*S - 4) | D89: 7 | E89: ja/nein
A90: 17 | B90: 2 | C90: Qualität (Schreibstil, Wortwahl, korrekte Anrede, Rechtsschreibung) | D90: 7 | E90: 1-7
A91: 18 | B91: 3 | C91: Informationsgehalt (z.B. Zusatzangebote) | D91: 7 | E91: 1-7
A92: 19 | B92: 4 | C92: Individuelle Bearbeitung von Sonderanfragen | D92: 7 | E92: 1-7
A93: 20 | B93: 5 | C93: Bei Angebot: Angaben zu Stornobedingungen | D93: 7 | E93: ja/nein
A94: 21 | B94: 6 | C94: Angabe von Zahlungsmodalitäten | D94: 7 | E94: ja/nein
A95: 22 | B95: 7 | C95: Anfahrts-, Wegbeschreibung, öffentliche Anreisemöglichkeiten | D95: 7 | E95: ja/nein
C96: Reservierungs-Bestätigung (E-Mail, Fax) als Antwort auf Ihre Buchung | F96: Kommentar
A97: 23 | B97: 8 | C97: Innerhalb … Stunden ab Reservierung (3*S - 24; 4*S - 12; 5*/5*S - 8) | D97: 7 | E97: ja/nein
A98: 24 | B98: 9 | C98: Qualität (Schreibstil, Wortwahl, korrekte Anrede, Rechtsschreibung) | D98: 7 | E98: 1-7
A99: 25 | B99: 10 | C99: Informationsgehalt (u.a. Aktuelle Anfahrtsbeschreibung) | D99: 7 | E99: 1-7
C100: Bewertung | D100: =SUM(D87:D99) -> 70
C101: Durchschnitt | D101: =SUM(D100/B99) -> 7
C103: Kommentar
C106: 3. Telefon
E107: Bewertung | F107: Kommentar
A108: 26 | B108: 1 | C108: Wartezeit (3*S - 1 Min; 4*S - 30 Sek; 5*/5*S - 15 Sek) | D108: 7 | E108: ja/nein
A109: 27 | B109: 2 | C109: Während der Wartezeit Text- bzw. Tonschleife | D109: 7 | E109: ja/nein
A110: 28 | B110: 3 | C110: Herzlichkeit | D110: 7 | E110: 1-7
A111: 29 | B111: 4 | C111: Klare deutliche Stimme und verständliche Aussprache | D111: 7 | E111: 1-7
A112: 30 | B112: 5 | C112: Anfragebeantwortung auf Deutsch (Rückruf ebenfalls aktzeptabel) | D112: 7 | E112: ja/nein
A113: 31 | B113: 6 | C113: Mit Namen angesprochen | D113: 7 | E113: ja/nein
A114: 32 | B114: 7 | C114: Vollständige Datenaufnahme (z.B. Name, Adresse, Tel, Email-Nachfrage) | D114: 7 | E114: ja/nein
A115: 33 | B115: 8 | C115: Fachliche Kompetenz | D115: 7 | E115: 1-7
A116: 34 | B116: 9 | C116: An- und Abreisedatum wiederholt und bestätigt | D116: 7 | E116: ja/nein
A117: 35 | B117: 10 | C117: Individuelle Bearbeitung von Sonderanfragen | D117: 7 | E117: 1-7
A118: 36 | B118: 11 | C118: Informationen über Check-in-Zeiten | D118: 7 | E118: ja/nein
A119: 37 | B119: 12 | C119: Aktives Anbieten von Zusatzleistungen | D119: 7 | E119: ja/nein
A120: 38 | B120: 13 | C120: Hinweis auf Stornobedingungen bei telefonischer Buchung | D120: 7 | E120: ja/nein
A121: 39 | B121: 14 | C121: Freundliche Verabschiedung und Dank | D121: 7 | E121: 1-7
C122: Bewertung | D122: =SUM(D108:D121) -> 98
C123: Durchschnitt | D123: =SUM(D122/B121) -> 7
C124: Kommentar
C126: 4. Anreise und Außenanlage
E127: Bewertung | F127: Kommentar
A128: 40 | B128: 1 | C128: Auffindbarkeit (z.B. Beschilderung im Ort) | D128: 7 | E128: 1-7
A129: 41 | B129: 2 | C129: Zufahrtsmöglichkeit bis zum Eingang | D129: 7 | E129: ja/nein
A130: 42 | B130: 3 | C130: Park- bzw. Garagenplätze (Zustand, Größe, ausreichende Anzahl etc.) | D130: 7 | E130: 1-7
A131: 43 | B131: 4 | C131: Beleuchtung des gesamten Außenbereichs inkl. Park- bzw. Garagenplätze | D131: 7 | E131: 1-7
A132: 44 | B132: 5 | C132: Gepäckservice | D132: 7 | E132: ja/nein
A133: 45 | B133: 6 | C133: Beschilderung am Haus (z.B. Eingang, Garage, Skikeller etc.) | D133: 7 | E133: 1-7
A134: 46 | B134: 7 | C134: Sauberkeit und Zustand des Gebäudes sowie der Außenanlagen | D134: 7 | E134: 1-7
A135: 47 | B135: 8 | C135: Parkservice (z.B. Doorman, Wagenmeister) | D135: 7 | E135: ja/nein
A136: 48 | B136: 9 | C136: Angebot zur leichteren Ermöglichung der öffentlichen Anreise (z.B. Transfer) | D136: 7 | E136: 1-7
C137: Bewertung | D137: =SUM(D128:D136) -> 63
C138: Durchschnitt | D138: =SUM(D137/B136) -> 7
C140: Kommentar
C143: 5. Check-In
C145: Eingangsbereich & Lobby | E145: Bewertung | F145: Kommentar
A146: 49 | B146: 1 | C146: Raumklima (Geruch) | D146: 7 | E146: 1-7
A147: 50 | B147: 2 | C147: Raumtemperatur | D147: 7 | E147: 1-7
A148: 51 | B148: 3 | C148: Beleuchtung ausreichend und ansprechend | D148: 7 | E148: 1-7
A149: 52 | B149: 4 | C149: Ambiente/Atmosphäre | D149: 7 | E149: 1-7
A150: 53 | B150: 5 | C150: Entsprechend qualitatives Mobiliar | D150: 7 | E150: 1-7
A151: 54 | B151: 6 | C151: Sauberkeit und Ordnung insb. Check-In-Bereich (Front Office) | D151: 7 | E151: ja/nein
A152: 55 | B152: 7 | C152: Stimmige Dekorationen | D152: 7 | E152: 1-7
A153: 56 | B153: 8 | C153: Großzügiger Sitzbereich für Gäste | D153: 7 | E153: ja/nein
C155: Front Office Mitarbeiter | E155: Bewertung | F155: Kommentar
A156: 57 | B156: 9 | C156: Anwesenheit | D156: 7 | E156: ja/nein
A157: 58 | B157: 10 | C157: Begrüßung (z.B. Welcome Drink) | D157: 7 | E157: ja/nein
A158: 59 | B158: 11 | C158: Herzlichkeit, Freundlichkeit | D158: 7 | E158: 1-7
A159: 60 | B159: 12 | C159: Erscheinungsbild Mitarbeiter (z.B. Uniform, Namensschild) | D159: 7 | E159: 1-7
A160: 61 | B160: 13 | C160: Fachkompetenz | D160: 7 | E160: 1-7
A161: 62 | B161: 14 | C161: Fremdsprachenkenntnisse (Deutsch + mind. eine Fremdsprache - ab 3* verpflichtend) | D161: 7 | E161: ja/nein
A162: 63 | B162: 15 | C162: Aufmerksamkeit, Sorgfältigkeit, Hilfsbereitschaft | D162: 7 | E162: 1-7
A163: 64 | B163: 16 | C163: Effizienz (Schnelligkeit, Flexibilität) | D163: 7 | E163: 1-7
A164: 65 | B164: 17 | C164: Klare, gut verständliche Aussprache | D164: 7 | E164: 1-7
A165: 66 | B165: 18 | C165: Gast mit Namen angesprochen | D165: 7 | E165: ja/nein
A166: 67 | B166: 19 | C166: Vorbereiteter Meldezettel | D166: 7 | E166: ja/nein
A167: 68 | B167: 20 | C167: Gepäcksservice angeboten | D167: 7 | E167: ja/nein
A168: 69 | B168: 21 | C168: Begleitung auf das Zimmer angeboten | D168: 7 | E168: ja/nein
A169: 70 | B169: 22 | C169: Allgemeine Haus-Informationen angeboten bzw. gegeben | D169: 7 | E169: ja/nein
A170: 71 | B170: 23 | C170: Angenehmen Aufenthalt gewünscht | D170: 7 | E170: ja/nein
C172: Begleitung zum Zimmer | E172: Bewertung | F172: Kommentar
A173: 72 | B173: 24 | C173: Erscheinungsbild des Mitarbeiters | D173: 7 | E173: 1-7
A174: 73 | B174: 25 | C174: Freundlichkeit, Konversation | D174: 7 | E174: 1-7
C176: Rooming | E176: Bewertung | F176: Kommentar
A177: 74 | B177: 26 | C177: Hinweis auf Hauptschalter (für Strom im Zimmer) | D177: 7 | E177: ja/nein
A178: 75 | B178: 27 | C178: Hinweis auf Heizung oder Klimaanlage | D178: 7 | E178: ja/nein
A179: 76 | B179: 28 | C179: Kommunikationsgerät (z.B. Telefon, Tablet, QR Code) (schriftliche Infos ausreichend) (3*-4* auf Wunsch, 5* auf dem Zimmer) | D179: 7 | E179: ja/nein
A180: 77 | B180: 29 | C180: Telefonverzeichnis bzw. -nummern (für Zimmerservice) - schriftliche Infos ausreichend | D180: 7 | E180: ja/nein
A181: 78 | B181: 30 | C181: Minibar oder Maxibar (bis 4*) (schriftliche Infos ausreichend) | D181: 7 | E181: ja/nein
A182: 79 | B182: 31 | C182: Safe (schriftliche Infos ausreichend) | D182: 7 | E182: ja/nein
A183: 80 | B183: 32 | C183: Wäsche-Service (schriftliche Infos ausreichend) | D183: 7 | E183: ja/nein
A184: 81 | B184: 33 | C184: Bügel-Service (schriftliche Infos ausreichend) | D184: 7 | E184: ja/nein
A185: 82 | B185: 34 | C185: Öffnungszeiten Restaurant, Bar, Sport-/ Erholungs- und/oder Wellnessbereich (schriftliche Infos ausreichend) | D185: 7 | E185: ja/nein
A186: 83 | B186: 35 | C186: Zeitangabe Frühstück (schriftliche Infos ausreichend) | D186: 7 | E186: ja/nein
A187: 84 | B187: 36 | C187: Rezeption 24 Std. erreichbar und … Std. besetzt (3*S - 8 bzw. 10; 4*S - 14; 5*/5*S - 24) | D187: 7 | E187: ja/nein
C188: Bewertung | D188: =SUM(D146:D187) -> 252
C189: Durchschnitt | D189: =SUM(D188/B187) -> 7
C191: Kommentar
C193: 6. Zimmer
C195: Erster Eindruck und Allgemeiner Charakter | E195: Bewertung | F195: Kommentar
A196: 85 | B196: 1 | C196: Raumklima (Frischer Geruch) | D196: 7 | E196: 1-7
A197: 86 | B197: 2 | C197: Angenehme Temperatur | D197: 7 | E197: 1-7
A198: 87 | B198: 3 | C198: Atmosphäre (Wohlfühlcharakter) | D198: 7 | E198: 1-7
A199: 88 | B199: 4 | C199: Geräuschpegel (Ruhe) | D199: 7 | E199: 1-7
A200: 89 | B200: 5 | C200: Entsprechendes Mobiliar | D200: 7 | E200: 1-7
A201: 90 | B201: 6 | C201: Sauberkeit | D201: 7 | E201: 1-7
A202: 91 | B202: 7 | C202: Willkommensbrief/-karte | D202: 7 | E202: ja/nein
A203: 92 | B203: 8 | C203: Willkommensgruß (z.B. Blumen, Obst, Konfekt…) | D203: 7 | E203: ja/nein
A204: 93 | B204: 9 | C204: Türschloss in einwandfreiem Zustand | D204: 7 | E204: ja/nein
C206: Das Bett | E206: Bewertung | F206: Kommentar
A207: 94 | B207: 10 | C207: Dem Hotelstandard angemessen | D207: 7 | E207: ja/nein
A208: 95 | B208: 11 | C208: Qualität der Bettbezüge angemessen | D208: 7 | E208: ja/nein
A209: 96 | B209: 12 | C209: Matratze/Liegekomfort | D209: 7 | E209: 1-7
A210: 97 | B210: 13 | C210: Bettdecken der Jahreszeit angepasst | D210: 7 | E210: ja/nein
A211: 98 | B211: 14 | C211: Zusatzkopfkissen auf Wunsch (kein Zierkissen) | D211: 7 | E211: ja/nein
A212: 99 | B212: 15 | C212: Zusatzdecke auf Wunsch | D212: 7 | E212: ja/nein
A213: 100 | B213: 16 | C213: Zwei Kopfkissen pro Gast (kein Zierkissen) | D213: 7 | E213: ja/nein
A214: 101 | B214: 17 | C214: Auswahl verschiedener Kopfkissen | D214: 7 | E214: ja/nein
A215: 102 | B215: 18 | C215: Allergikerfreundliche Bettwäsche und Einlagen auf Wunsch | D215: 7 | E215: ja/nein
A216: 103 | B216: 19 | C216: Hygienebezüge (Matratzen und/oder Kopfkissen) | D216: 7 | E216: ja/nein
C218: Einrichtung | E218: Bewertung | F218: Kommentar
A219: 104 | B219: 20 | C219: Qualität und Zustand der Vorhänge | D219: 7 | E219: 1-7
A220: 105 | B220: 21 | C220: Verdunkelung mit Vorhängen möglich | D220: 7 | E220: ja/nein
A221: 106 | B221: 22 | C221: Schalter, Steckdosen leicht erreichbar und zugänglich (nicht durch andere Geräte belegt) | D221: 7 | E221: ja/nein
A222: 107 | B222: 23 | C222: Einwandfreie Wände | D222: 7 | E222: 1-7
A223: 108 | B223: 24 | C223: Einwandfreie Beleuchtung | D223: 7 | E223: 1-7
A224: 109 | B224: 25 | C224: Einwandfreie Einrichtung (Mobiliar) | D224: 7 | E224: ja/nein
A225: 110 | B225: 26 | C225: Angemessene Anzahl einheitlicher Kleiderbügel (kein Draht) bis inkl. 3*; verschiedene Bügelarten 4*, 5*; | D225: 7 | E225: ja/nein
A226: 111 | B226: 27 | C226: Geräumige Ablagemöglichkeiten | D226: 7 | E226: ja/nein
A227: 112 | B227: 28 | C227: Geräumige Hängevorrichtung in den Kästen | D227: 7 | E227: ja/nein
A228: 113 | B228: 29 | C228: Ist die permanent Strom führende Steckdose gekennzeichnet? | D228: 7 | E228: ja/nein
A229: 114 | B229: 30 | C229: Ist auf dem Schreibtisch ausreichend Platz für einen Laptop? | D229: 7 | E229: ja/nein
C231: Ausstattung und Services | E231: Bewertung | F231: Kommentar
A232: 115 | B232: 31 | C232: funktionstüchtige Audio- / Multimedia Unterhaltung (z.B. Radio, Streaming-Dienste) | D232: 7 | E232: ja/nein
A233: 116 | B233: 32 | C233: TV-Programme gut eingestellt | D233: 7 | E233: ja/nein
A234: 117 | B234: 33 | C234: Monitor (TV) in für Raumgröße angemessener Größe | D234: 7 | E234: 1-7
A235: 118 | B235: 34 | C235: Kommunikationsgerät mit interner und externer Telefonfunktion (3*-4* auf Wunsch, 5* auf dem Zimmer) | D235: 7 | E235: ja/nein
A236: 119 | B236: 35 | C236: Bedienungsanleitung für das Kommunikationsgerät (ab 5* zweisprachig verpflichtend) | D236: 7 | E236: ja/nein
A237: 120 | B237: 36 | C237: Schreibblock und einem Bleistift neben Telefon | D237: 7 | E237: ja/nein
A238: 121 | B238: 37 | C238: WLAN Internetzugang auf den Zimmern | D238: 7 | E238: ja/nein
A239: 122 | B239: 38 | C239: Druckmöglichkeit auf Wunsch | D239: 7 | E239: ja/nein
A240: 123 | B240: 39 | C240: Einwandfreie Funktionalität aller elektrischen Einrichtungen (z.B. Licht, TV, Fön) | D240: 7 | E240: ja/nein
A241: 124 | B241: 40 | C241: Safe im Zimmer (ab 5* verpflichtend) | D241: 7 | E241: ja/nein
A242: 125 | B242: 41 | C242: "Bitte nicht stören/Bitte aufräumen" Angabemöglichkeit vorhanden | D242: 7 | E242: ja/nein
A243: 126 | B243: 42 | C243: "Bitte nicht aufräumen" (opt-out von Zimmerreinigung) | D243: 7 | E243: ja/nein
A244: 127 | B244: 43 | C244: Aktualität des Infomaterials (gedruckt oder digital) | D244: 7 | E244: ja/nein
A245: 128 | B245: 44 | C245: Sicherheitsbestimmungen (z.B. Brandschutz, Fluchtwege) sichtbar | D245: 7 | E245: ja/nein
A246: 129 | B246: 45 | C246: Aktuelles Medienangebot (Zeitschriften und/oder Magazine - gedruckt oder digital) | D246: 7 | E246: 1-7
A247: 130 | B247: 46 | C247: Zweisprachiger Serviceleitfaden (gedruckt oder digital) | D247: 7 | E247: ja/nein
A248: 131 | B248: 47 | C248: Internationaler Steckdosenadapter, Ladegeräte/Adapter auf Wunsch (z.B. für elektr. Geräte wie Handys, Tabletts...) ab 1* verpflichtend | D248: 7 | E248: ja/nein
A249: 132 | B249: 48 | C249: Pro Bett ein Trinkglas auf Untersetzer (z.B. Serviette) | D249: 7 | E249: ja/nein
A250: 133 | B250: 49 | C250: Angebote in Minibar (Getränke, Snacks - 5* verpflichtend) | D250: 7 | E250: 1-7
A251: 134 | B251: 50 | C251: sind ausreichend Sitzgelegenheiten vorhanden? | D251: 7 | E251: ja/nein
A252: 135 | B252: 51 | C252: Qualität der Sitzgelegeneheiten | D252: 7 | E252: 1-7
A253: 136 | B253: 52 | C253: Getränke im Roomservice mit Getränkekarte (4* - 12h; 5* - 24h) | D253: 7 | E253: 1-7
A254: 137 | B254: 53 | C254: Speisen im Roomservice mit Speisekarte (4* - 12h; 5* - 24h) | D254: 7 | E254: 1-7
A255: 138 | B255: 54 | C255: Frühstückskarte im Roomservice | D255: 7 | E255: ja/nein
A256: 139 | B256: 55 | C256: Wäschereiservice | D256: 7 | E256: ja/nein
A257: 140 | B257: 56 | C257: Bügelservice | D257: 7 | E257: ja/nein
A258: 141 | B258: 57 | C258: Nähservice | D258: 7 | E258: ja/nein
A259: 142 | B259: 58 | C259: Schuhputzservice | D259: 7 | E259: ja/nein
C261: Badezimmer | E261: Bewertung | F261: Kommentar
A262: 143 | B262: 59 | C262: Atmosphäre (Wohlfühlcharakter) | D262: 7 | E262: 1-7
A263: 144 | B263: 60 | C263: Entsprechende Ausstattung | D263: 7 | E263: 1-7
A264: 145 | B264: 61 | C264: Helligkeit | D264: 7 | E264: 1-7
A265: 146 | B265: 62 | C265: Einwandfreie Hygiene und Sauberkeit | D265: 7 | E265: ja/nein
A266: 147 | B266: 63 | C266: Böden in der Dusche/ Wanne aus rutschfestem Material | D266: 7 | E266: ja/nein
A267: 148 | B267: 64 | C267: Einfach handhabbare Wasserhähne | D267: 7 | E267: ja/nein
A268: 149 | B268: 65 | C268: Pro Person ein einwandfreies Zahnputzglas (oder Zahnbürstenhalter) | D268: 7 | E268: ja/nein
A269: 150 | B269: 66 | C269: Mindestens ein qualitativ einwandfreies Handtuch pro Person | D269: 7 | E269: ja/nein
A270: 151 | B270: 67 | C270: Mindestens ein qualitativ einwandfreies Badetuch pro Person | D270: 7 | E270: ja/nein
A271: 152 | B271: 68 | C271: Badvorleger aus Textil | D271: 7 | E271: ja/nein
... 305 more rows

Sheet Tacho Freizeit (hidden)
A1: Segment 1 (rot) | B1: 1
A2: Segment 2 | B2: 1
A3: Segment 3 | B3: 1
A4: Segment 4 | B4: 1
A5: Segment 5 | B5: 1
A6: Segment 6 | B6: 1
A7: Segment 7 (grün) | B7: 1
A8: Unsichtbar | B8: 7
A10: Zeiger | B10: =Freizeit!D612 -> 7
A11: Rest | B11: =7-B10 -> 0
A12: Unsichtbar | B12: 7

Sheet Tagung
C7: Fachverband Hotellerie
C11: Fragenkatalog für Mystery Guest-Check
C18: Arbeitsunterlage 2025-2030
C24: Dies ist die Auflistung der erforderlichen Prüfkriterien für Firmen, die einen Mystery-Test im Rahmen der Österreichischen Hotelklassifizierung durchführen. Über die Listung einer Firma entscheidet die Lenkungskommission bzw. der Fachverband Hotellerie nach Prüfung der Voraussetzungen.
C27: Bewertung
C29: ja / überdurchschnittlich erfülltes Kriterium | D29: 7
C30: gut bis sehr gut erfülltes Kriterium | D30: 6
C31: erfülltes Kriterium | D31: 5
C32: mittelmäßig erfülltes Kriterium | D32: 4
C33: teilweise erfülltes Kriterium | D33: 3
C34: zu kleinen Teilen erfülltes Kriterium | D34: 2
C35: nein / negativ erfülltes Kriterium | D35: 1
C38: Gesamtbewertung des Betriebs
C63: 1. Web-Auftritt
E64: Bewertung | F64: Kommentar
A65: 1 | B65: 1 | C65: Nachvollziehbare bzw. leicht auffindbare Webadresse | D65: 7 | E65: ja/nein
A66: 2 | B66: 2 | C66: Funktionieren alle Links | D66: 7 | E66: ja/nein
A67: 3 | B67: 3 | C67: Übersichtlichkeit, Struktur | D67: 7 | E67: 1-7
A68: 4 | B68: 4 | C68: Such-Funktion | D68: 7 | E68: ja/nein
A69: 5 | B69: 5 | C69: Integriertes Gästefeedback | D69: 7 | E69: ja/nein
A70: 6 | B70: 6 | C70: Verständlichkeit des Inhalts | D70: 7 | E70: ja/nein
A71: 7 | B71: 7 | C71: Aussagekräftiger, realistischer Auftritt mit Hotelbildern | D71: 7 | E71: ja/nein
A72: 8 | B72: 8 | C72: Aktualität (inkl. Kernöffnungszeiten Rezeption (1*-3*), wenn auf Buchungsbestätigung nicht angegeben; Öffnungstage Restaurant (1*-4* verpflichtend) sowie Öffnungszeiten der Sport-/Erholungs- und Wellnessbereich) | D72: 7 | E72: ja/nein
A73: 9 | B73: 9 | C73: Impressum | D73: 7 | E73: ja/nein
A74: 10 | B74: 10 | C74: Übersetzung in mindestens eine Fremdsprache (ab 1* verpflichtend) - automatische Übersetzung genügt | D74: 7 | E74: ja/nein
A75: 11 | B75: 11 | C75: Kontaktangabe (Email, Telefon, etc.) | D75: 7 | E75: ja/nein
A76: 12 | B76: 12 | C76: Online-Buchbarkeit auf eigener Website - benutzerfreundlich? | D76: 7 | E76: ja/nein
A77: 13 | B77: 13 | C77: Anfahrtsplan und Informationen über öffentliche Verkehrsanbindungen bzw. Transfermöglichkeiten | D77: 7 | E77: ja/nein
A78: 14 | B78: 14 | C78: Allgemeinen Geschäftsbedingungen, Stornobedingungen vorhanden | D78: 7 | E78: ja/nein
A79: 15 | B79: 15 | C79: Mobile Version der Website oder mobile Applikation | D79: 7 | E79: ja/nein
C80: Bewertung | D80: =SUM(D65:D79) -> 105
C81: Durchschnitt | D81: =SUM(D80/B79) -> 7
C83: Kommentar
C86: 2. E-Mail
C88: Beantwortung Ihrer E-Mail Anfrage, | E88: Bewertung | F88: Kommentar
A89: 16 | B89: 1 | C89: Innerhalb … Stunden ab Anfrage (3*S - 12; 4*S - 8; 5*/5*S - 4) | D89: 7 | E89: ja/nein
A90: 17 | B90: 2 | C90: Qualität (Schreibstil, Wortwahl, korrekte Anrede, Rechtsschreibung) | D90: 7 | E90: 1-7
A91: 18 | B91: 3 | C91: Informationsgehalt (z.B. Zusatzangebote) | D91: 7 | E91: 1-7
A92: 19 | B92: 4 | C92: Individuelle Bearbeitung von Sonderanfragen | D92: 7 | E92: 1-7
A93: 20 | B93: 5 | C93: Bei Angebot: Angaben zu Stornobedingungen | D93: 7 | E93: ja/nein
A94: 21 | B94: 6 | C94: Angabe von Zahlungsmodalitäten | D94: 7 | E94: ja/nein
A95: 22 | B95: 7 | C95: Anfahrts-, Wegbeschreibung, öffentliche Anreisemöglichkeiten | D95: 7 | E95: ja/nein
C96: Reservierungs-Bestätigung (E-Mail, Fax) als Antwort auf Ihre Buchung | F96: Kommentar
A97: 23 | B97: 8 | C97: Innerhalb … Stunden ab Reservierung (3*S - 24; 4*S - 12; 5*/5*S - 8) | D97: 7 | E97: ja/nein
A98: 24 | B98: 9 | C98: Qualität (Schreibstil, Wortwahl, korrekte Anrede, Rechtsschreibung) | D98: 7 | E98: 1-7
A99: 25 | B99: 10 | C99: Informationsgehalt (u.a. Aktuelle Anfahrtsbeschreibung) | D99: 7 | E99: 1-7
C100: Bewertung | D100: =SUM(D87:D99) -> 70
C101: Durchschnitt | D101: =SUM(D100/B99) -> 7
C103: Kommentar
C106: 3. Telefon
E107: Bewertung | F107: Kommentar
A108: 26 | B108: 1 | C108: Wartezeit (3*S - 1 Min; 4*S - 30 Sek; 5*/5*S - 15 Sek) | D108: 7 | E108: ja/nein
A109: 27 | B109: 2 | C109: Während der Wartezeit Text- bzw. Tonschleife | D109: 7 | E109: ja/nein
A110: 28 | B110: 3 | C110: Herzlichkeit | D110: 7 | E110: 1-7
A111: 29 | B111: 4 | C111: Klare deutliche Stimme und verständliche Aussprache | D111: 7 | E111: 1-7
A112: 30 | B112: 5 | C112: Anfragebeantwortung auf Deutsch (Rückruf ebenfalls aktzeptabel) | D112: 7 | E112: ja/nein
A113: 31 | B113: 6 | C113: Mit Namen angesprochen | D113: 7 | E113: ja/nein
A114: 32 | B114: 7 | C114: Vollständige Datenaufnahme (z.B. Name, Adresse, Tel, Email-Nachfrage) | D114: 7 | E114: ja/nein
A115: 33 | B115: 8 | C115: Fachliche Kompetenz | D115: 7 | E115: 1-7
A116: 34 | B116: 9 | C116: An- und Abreisedatum wiederholt und bestätigt | D116: 7 | E116: ja/nein
A117: 35 | B117: 10 | C117: Individuelle Bearbeitung von Sonderanfragen | D117: 7 | E117: 1-7
A118: 36 | B118: 11 | C118: Informationen über Check-in-Zeiten | D118: 7 | E118: ja/nein
A119: 37 | B119: 12 | C119: Aktives Anbieten von Zusatzleistungen | D119: 7 | E119: ja/nein
A120: 38 | B120: 13 | C120: Hinweis auf Stornobedingungen bei telefonischer Buchung | D120: 7 | E120: ja/nein
A121: 39 | B121: 14 | C121: Freundliche Verabschiedung und Dank | D121: 7 | E121: 1-7
C122: Bewertung | D122: =SUM(D108:D121) -> 98
C123: Durchschnitt | D123: =SUM(D122/B121) -> 7
C124: Kommentar
C126: 4. Anreise und Außenanlage
E127: Bewertung | F127: Kommentar
A128: 40 | B128: 1 | C128: Auffindbarkeit (z.B. Beschilderung im Ort) | D128: 7 | E128: 1-7
A129: 41 | B129: 2 | C129: Zufahrtsmöglichkeit bis zum Eingang | D129: 7 | E129: ja/nein
A130: 42 | B130: 3 | C130: Park- bzw. Garagenplätze (Zustand, Größe, ausreichende Anzahl etc.) | D130: 7 | E130: 1-7
A131: 43 | B131: 4 | C131: Beleuchtung des gesamten Außenbereichs inkl. Park- bzw. Garagenplätze | D131: 7 | E131: 1-7
A132: 44 | B132: 5 | C132: Gepäckservice | D132: 7 | E132: ja/nein
A133: 45 | B133: 6 | C133: Beschilderung am Haus (z.B. Eingang, Garage, Skikeller etc.) | D133: 7 | E133: 1-7
A134: 46 | B134: 7 | C134: Sauberkeit und Zustand des Gebäudes sowie der Außenanlagen | D134: 7 | E134: 1-7
A135: 47 | B135: 8 | C135: Parkservice (z.B. Doorman, Wagenmeister) | D135: 7 | E135: ja/nein
A136: 48 | B136: 9 | C136: Angebot zur leichteren Ermöglichung der öffentlichen Anreise (z.B. Transfer) | D136: 7 | E136: 1-7
C137: Bewertung | D137: =SUM(D128:D136) -> 63
C138: Durchschnitt | D138: =SUM(D137/B136) -> 7
C140: Kommentar
C143: 5. Check-In
C145: Eingangsbereich & Lobby | E145: Bewertung | F145: Kommentar
A146: 49 | B146: 1 | C146: Raumklima (Geruch) | D146: 7 | E146: 1-7
A147: 50 | B147: 2 | C147: Raumtemperatur | D147: 7 | E147: 1-7
A148: 51 | B148: 3 | C148: Beleuchtung ausreichend und ansprechend | D148: 7 | E148: 1-7
A149: 52 | B149: 4 | C149: Ambiente/Atmosphäre | D149: 7 | E149: 1-7
A150: 53 | B150: 5 | C150: Entsprechend qualitatives Mobiliar | D150: 7 | E150: 1-7
A151: 54 | B151: 6 | C151: Sauberkeit und Ordnung insb. Check-In-Bereich (Front Office) | D151: 7 | E151: ja/nein
A152: 55 | B152: 7 | C152: Stimmige Dekorationen | D152: 7 | E152: 1-7
A153: 56 | B153: 8 | C153: Großzügiger Sitzbereich für Gäste | D153: 7 | E153: ja/nein
C155: Front Office Mitarbeiter | E155: Bewertung | F155: Kommentar
A156: 57 | B156: 9 | C156: Anwesenheit | D156: 7 | E156: ja/nein
A157: 58 | B157: 10 | C157: Begrüßung (z.B. Welcome Drink) | D157: 7 | E157: ja/nein
A158: 59 | B158: 11 | C158: Herzlichkeit, Freundlichkeit | D158: 7 | E158: 1-7
A159: 60 | B159: 12 | C159: Erscheinungsbild Mitarbeiter (z.B. Uniform, Namensschild) | D159: 7 | E159: 1-7
A160: 61 | B160: 13 | C160: Fachkompetenz | D160: 7 | E160: 1-7
A161: 62 | B161: 14 | C161: Fremdsprachenkenntnisse (Deutsch + mind. eine Fremdsprache - ab 3* verpflichtend) | D161: 7 | E161: ja/nein
A162: 63 | B162: 15 | C162: Aufmerksamkeit, Sorgfältigkeit, Hilfsbereitschaft | D162: 7 | E162: 1-7
A163: 64 | B163: 16 | C163: Effizienz (Schnelligkeit, Flexibilität) | D163: 7 | E163: 1-7
A164: 65 | B164: 17 | C164: Klare, gut verständliche Aussprache | D164: 7 | E164: 1-7
A165: 66 | B165: 18 | C165: Gast mit Namen angesprochen | D165: 7 | E165: ja/nein
A166: 67 | B166: 19 | C166: Vorbereiteter Meldezettel | D166: 7 | E166: ja/nein
A167: 68 | B167: 20 | C167: Gepäcksservice angeboten | D167: 7 | E167: ja/nein
A168: 69 | B168: 21 | C168: Begleitung auf das Zimmer angeboten | D168: 7 | E168: ja/nein
A169: 70 | B169: 22 | C169: Allgemeine Haus-Informationen angeboten bzw. gegeben | D169: 7 | E169: ja/nein
A170: 71 | B170: 23 | C170: Angenehmen Aufenthalt gewünscht | D170: 7 | E170: ja/nein
C172: Begleitung zum Zimmer | E172: Bewertung | F172: Kommentar
A173: 72 | B173: 24 | C173: Erscheinungsbild des Mitarbeiters | D173: 7 | E173: 1-7
A174: 73 | B174: 25 | C174: Freundlichkeit, Konversation | D174: 7 | E174: 1-7
C176: Rooming | E176: Bewertung | F176: Kommentar
A177: 74 | B177: 26 | C177: Hinweis auf Hauptschalter (für Strom im Zimmer) | D177: 7 | E177: ja/nein
A178: 75 | B178: 27 | C178: Hinweis auf Heizung oder Klimaanlage | D178: 7 | E178: ja/nein
A179: 76 | B179: 28 | C179: Kommunikationsgerät (z.B. Telefon, Tablet, QR Code) (schriftliche Infos ausreichend) (3*-4* auf Wunsch, 5* auf dem Zimmer) | D179: 7 | E179: ja/nein
A180: 77 | B180: 29 | C180: Telefonverzeichnis bzw. -nummern (für Zimmerservice) - schriftliche Infos ausreichend | D180: 7 | E180: ja/nein
A181: 78 | B181: 30 | C181: Minibar oder Maxibar (bis 4*) (schriftliche Infos ausreichend) | D181: 7 | E181: ja/nein
A182: 79 | B182: 31 | C182: Safe (schriftliche Infos ausreichend) | D182: 7 | E182: ja/nein
A183: 80 | B183: 32 | C183: Wäsche-Service (schriftliche Infos ausreichend) | D183: 7 | E183: ja/nein
A184: 81 | B184: 33 | C184: Bügel-Service (schriftliche Infos ausreichend) | D184: 7 | E184: ja/nein
A185: 82 | B185: 34 | C185: Öffnungszeiten Restaurant, Bar, Sport-/ Erholungs- und/oder Wellnessbereich (schriftliche Infos ausreichend) | D185: 7 | E185: ja/nein
A186: 83 | B186: 35 | C186: Zeitangabe Frühstück (schriftliche Infos ausreichend) | D186: 7 | E186: ja/nein
A187: 84 | B187: 36 | C187: Rezeption 24 Std. erreichbar und … Std. besetzt (3*S - 8 bzw. 10; 4*S - 14; 5*/5*S - 24) | D187: 7 | E187: ja/nein
C188: Bewertung | D188: =SUM(D146:D187) -> 252
C189: Durchschnitt | D189: =SUM(D188/B187) -> 7
C191: Kommentar
C193: 6. Zimmer
C195: Erster Eindruck und Allgemeiner Charakter | E195: Bewertung | F195: Kommentar
A196: 85 | B196: 1 | C196: Raumklima (Frischer Geruch) | D196: 7 | E196: 1-7
A197: 86 | B197: 2 | C197: Angenehme Temperatur | D197: 7 | E197: 1-7
A198: 87 | B198: 3 | C198: Atmosphäre (Wohlfühlcharakter) | D198: 7 | E198: 1-7
A199: 88 | B199: 4 | C199: Geräuschpegel (Ruhe) | D199: 7 | E199: 1-7
A200: 89 | B200: 5 | C200: Entsprechendes Mobiliar | D200: 7 | E200: 1-7
A201: 90 | B201: 6 | C201: Sauberkeit | D201: 7 | E201: 1-7
A202: 91 | B202: 7 | C202: Willkommensbrief/-karte | D202: 7 | E202: ja/nein
A203: 92 | B203: 8 | C203: Willkommensgruß (z.B. Blumen, Obst, Konfekt…) | D203: 7 | E203: ja/nein
A204: 93 | B204: 9 | C204: Türschloss in einwandfreiem Zustand | D204: 7 | E204: ja/nein
C206: Das Bett | E206: Bewertung | F206: Kommentar
A207: 94 | B207: 10 | C207: Dem Hotelstandard angemessen | D207: 7 | E207: ja/nein
A208: 95 | B208: 11 | C208: Qualität der Bettbezüge angemessen | D208: 7 | E208: ja/nein
A209: 96 | B209: 12 | C209: Matratze/Liegekomfort | D209: 7 | E209: 1-7
A210: 97 | B210: 13 | C210: Bettdecken der Jahreszeit angepasst | D210: 7 | E210: ja/nein
A211: 98 | B211: 14 | C211: Zusatzkopfkissen auf Wunsch (kein Zierkissen) | D211: 7 | E211: ja/nein
A212: 99 | B212: 15 | C212: Zusatzdecke auf Wunsch | D212: 7 | E212: ja/nein
A213: 100 | B213: 16 | C213: Zwei Kopfkissen pro Gast (kein Zierkissen) | D213: 7 | E213: ja/nein
A214: 101 | B214: 17 | C214: Auswahl verschiedener Kopfkissen | D214: 7 | E214: ja/nein
A215: 102 | B215: 18 | C215: Allergikerfreundliche Bettwäsche und Einlagen auf Wunsch | D215: 7 | E215: ja/nein
A216: 103 | B216: 19 | C216: Hygienebezüge (Matratzen und/oder Kopfkissen) | D216: 7 | E216: ja/nein
C218: Einrichtung | E218: Bewertung | F218: Kommentar
A219: 104 | B219: 20 | C219: Qualität und Zustand der Vorhänge | D219: 7 | E219: 1-7
A220: 105 | B220: 21 | C220: Verdunkelung mit Vorhängen möglich | D220: 7 | E220: ja/nein
A221: 106 | B221: 22 | C221: Schalter, Steckdosen leicht erreichbar und zugänglich (nicht durch andere Geräte belegt) | D221: 7 | E221: ja/nein
A222: 107 | B222: 23 | C222: Einwandfreie Wände | D222: 7 | E222: 1-7
A223: 108 | B223: 24 | C223: Einwandfreie Beleuchtung | D223: 7 | E223: 1-7
A224: 109 | B224: 25 | C224: Einwandfreie Einrichtung (Mobiliar) | D224: 7 | E224: ja/nein
A225: 110 | B225: 26 | C225: Angemessene Anzahl einheitlicher Kleiderbügel (kein Draht) bis inkl. 3*; verschiedene Bügelarten 4*, 5*; | D225: 7 | E225: ja/nein
A226: 111 | B226: 27 | C226: Geräumige Ablagemöglichkeiten | D226: 7 | E226: ja/nein
A227: 112 | B227: 28 | C227: Geräumige Hängevorrichtung in den Kästen | D227: 7 | E227: ja/nein
A228: 113 | B228: 29 | C228: Ist die permanent Strom führende Steckdose gekennzeichnet? | D228: 7 | E228: ja/nein
A229: 114 | B229: 30 | C229: Ist auf dem Schreibtisch ausreichend Platz für einen Laptop? | D229: 7 | E229: ja/nein
C231: Ausstattung und Services | E231: Bewertung | F231: Kommentar
A232: 115 | B232: 31 | C232: funktionstüchtige Audio- / Multimedia Unterhaltung (z.B. Radio, Streaming-Dienste) | D232: 7 | E232: ja/nein
A233: 116 | B233: 32 | C233: TV-Programme gut eingestellt | D233: 7 | E233: ja/nein
A234: 117 | B234: 33 | C234: Monitor (TV) in für Raumgröße angemessener Größe | D234: 7 | E234: 1-7
A235: 118 | B235: 34 | C235: Kommunikationsgerät mit interner und externer Telefonfunktion (3*-4* auf Wunsch, 5* auf dem Zimmer) | D235: 7 | E235: ja/nein
A236: 119 | B236: 35 | C236: Bedienungsanleitung für das Kommunikationsgerät (ab 5* zweisprachig verpflichtend) | D236: 7 | E236: ja/nein
A237: 120 | B237: 36 | C237: Schreibblock und einem Bleistift neben Telefon | D237: 7 | E237: ja/nein
A238: 121 | B238: 37 | C238: WLAN Internetzugang auf den Zimmern | D238: 7 | E238: ja/nein
A239: 122 | B239: 38 | C239: Druckmöglichkeit auf Wunsch | D239: 7 | E239: ja/nein
A240: 123 | B240: 39 | C240: Einwandfreie Funktionalität aller elektrischen Einrichtungen (z.B. Licht, TV, Fön) | D240: 7 | E240: ja/nein
A241: 124 | B241: 40 | C241: Safe im Zimmer (ab 5* verpflichtend) | D241: 7 | E241: ja/nein
A242: 125 | B242: 41 | C242: "Bitte nicht stören/Bitte aufräumen" Angabemöglichkeit vorhanden | D242: 7 | E242: ja/nein
A243: 126 | B243: 42 | C243: "Bitte nicht aufräumen" (opt-out von Zimmerreinigung) | D243: 7 | E243: ja/nein
A244: 127 | B244: 43 | C244: Aktualität des Infomaterials (gedruckt oder digital) | D244: 7 | E244: ja/nein
A245: 128 | B245: 44 | C245: Sicherheitsbestimmungen (z.B. Brandschutz, Fluchtwege) sichtbar | D245: 7 | E245: ja/nein
A246: 129 | B246: 45 | C246: Aktuelles Medienangebot (Zeitschriften und/oder Magazine - gedruckt oder digital) | D246: 7 | E246: 1-7
A247: 130 | B247: 46 | C247: Zweisprachiger Serviceleitfaden (gedruckt oder digital) | D247: 7 | E247: ja/nein
A248: 131 | B248: 47 | C248: Internationaler Steckdosenadapter, Ladegeräte/Adapter auf Wunsch (z.B. für elektr. Geräte wie Handys, Tabletts...) ab 1* verpflichtend | D248: 7 | E248: ja/nein
A249: 132 | B249: 48 | C249: Pro Bett ein Trinkglas auf Untersetzer (z.B. Serviette) | D249: 7 | E249: ja/nein
A250: 133 | B250: 49 | C250: Angebote in Minibar (Getränke, Snacks - 5* verpflichtend) | D250: 7 | E250: 1-7
A251: 134 | B251: 50 | C251: sind ausreichend Sitzgelegenheiten vorhanden? | D251: 7 | E251: ja/nein
A252: 135 | B252: 51 | C252: Qualität der Sitzgelegeneheiten | D252: 7 | E252: 1-7
A253: 136 | B253: 52 | C253: Getränke im Roomservice mit Getränkekarte (4* - 12h; 5* - 24h) | D253: 7 | E253: 1-7
A254: 137 | B254: 53 | C254: Speisen im Roomservice mit Speisekarte (4* - 12h; 5* - 24h) | D254: 7 | E254: 1-7
A255: 138 | B255: 54 | C255: Frühstückskarte im Roomservice | D255: 7 | E255: ja/nein
A256: 139 | B256: 55 | C256: Wäschereiservice | D256: 7 | E256: ja/nein
A257: 140 | B257: 56 | C257: Bügelservice | D257: 7 | E257: ja/nein
A258: 141 | B258: 57 | C258: Nähservice | D258: 7 | E258: ja/nein
A259: 142 | B259: 58 | C259: Schuhputzservice | D259: 7 | E259: ja/nein
C261: Badezimmer | E261: Bewertung | F261: Kommentar
A262: 143 | B262: 59 | C262: Atmosphäre (Wohlfühlcharakter) | D262: 7 | E262: 1-7
A263: 144 | B263: 60 | C263: Entsprechende Ausstattung | D263: 7 | E263: 1-7
A264: 145 | B264: 61 | C264: Helligkeit | D264: 7 | E264: 1-7
A265: 146 | B265: 62 | C265: Einwandfreie Hygiene und Sauberkeit | D265: 7 | E265: ja/nein
A266: 147 | B266: 63 | C266: Böden in der Dusche/ Wanne aus rutschfestem Material | D266: 7 | E266: ja/nein
A267: 148 | B267: 64 | C267: Einfach handhabbare Wasserhähne | D267: 7 | E267: ja/nein
A268: 149 | B268: 65 | C268: Pro Person ein einwandfreies Zahnputzglas (oder Zahnbürstenhalter) | D268: 7 | E268: ja/nein
A269: 150 | B269: 66 | C269: Mindestens ein qualitativ einwandfreies Handtuch pro Person | D269: 7 | E269: ja/nein
A270: 151 | B270: 67 | C270: Mindestens ein qualitativ einwandfreies Badetuch pro Person | D270: 7 | E270: ja/nein
A271: 152 | B271: 68 | C271: Badvorleger aus Textil | D271: 7 | E271: ja/nein
... 306 more rows

Sheet Tacho Tagnung (hidden)
A1: Segment 1 (rot) | B1: 1
A2: Segment 2 | B2: 1
A3: Segment 3 | B3: 1
A4: Segment 4 | B4: 1
A5: Segment 5 | B5: 1
A6: Segment 6 | B6: 1
A7: Segment 7 (grün) | B7: 1
A8: Unsichtbar | B8: 7
A10: Zeiger | B10: =Tagung!D613 -> 7
A11: Rest | B11: =7-B10 -> 0
A12: Unsichtbar | B12: 7

Sheet ohne Zusatz
C7: Fachverband Hotellerie
C11: Fragenkatalog für Mystery Guest-Check
C18: Arbeitsunterlage 2025-2030
C24: Dies ist die Auflistung der erforderlichen Prüfkriterien für Firmen, die einen Mystery-Test im Rahmen der Österreichischen Hotelklassifizierung durchführen. Über die Listung einer Firma entscheidet die Lenkungskommission bzw. der Fachverband Hotellerie nach Prüfung der Voraussetzungen.
C27: Bewertung
C29: ja / überdurchschnittlich erfülltes Kriterium | D29: 7
C30: gut bis sehr gut erfülltes Kriterium | D30: 6
C31: erfülltes Kriterium | D31: 5
C32: mittelmäßig erfülltes Kriterium | D32: 4
C33: teilweise erfülltes Kriterium | D33: 3
C34: zu kleinen Teilen erfülltes Kriterium | D34: 2
C35: nein / negativ erfülltes Kriterium | D35: 1
C38: Gesamtbewertung des Betriebs
C63: 1. Web-Auftritt
E64: Bewertung | F64: Kommentar
A65: 1 | B65: 1 | C65: Nachvollziehbare bzw. leicht auffindbare Webadresse | D65: 7 | E65: ja/nein
A66: 2 | B66: 2 | C66: Funktionieren alle Links | D66: 7 | E66: ja/nein
A67: 3 | B67: 3 | C67: Übersichtlichkeit, Struktur | D67: 7 | E67: 1-7
A68: 4 | B68: 4 | C68: Such-Funktion | D68: 7 | E68: ja/nein
A69: 5 | B69: 5 | C69: Integriertes Gästefeedback | D69: 7 | E69: ja/nein
A70: 6 | B70: 6 | C70: Verständlichkeit des Inhalts | D70: 7 | E70: ja/nein
A71: 7 | B71: 7 | C71: Aussagekräftiger, realistischer Auftritt mit Hotelbildern | D71: 7 | E71: ja/nein
A72: 8 | B72: 8 | C72: Aktualität (inkl. Kernöffnungszeiten Rezeption (1*-3*), wenn auf Buchungsbestätigung nicht angegeben; Öffnungstage Restaurant (1*-4* verpflichtend) sowie Öffnungszeiten der Sport-/Erholungs- und Wellnessbereich) | D72: 7 | E72: ja/nein
A73: 9 | B73: 9 | C73: Impressum | D73: 7 | E73: ja/nein
A74: 10 | B74: 10 | C74: Übersetzung in mindestens eine Fremdsprache (ab 1* verpflichtend) - automatische Übersetzung genügt | D74: 7 | E74: ja/nein
A75: 11 | B75: 11 | C75: Kontaktangabe (Email, Telefon, etc.) | D75: 7 | E75: ja/nein
A76: 12 | B76: 12 | C76: Online-Buchbarkeit auf eigener Website - benutzerfreundlich? | D76: 7 | E76: ja/nein
A77: 13 | B77: 13 | C77: Anfahrtsplan und Informationen über öffentliche Verkehrsanbindungen bzw. Transfermöglichkeiten | D77: 7 | E77: ja/nein
A78: 14 | B78: 14 | C78: Allgemeinen Geschäftsbedingungen, Stornobedingungen vorhanden | D78: 7 | E78: ja/nein
A79: 15 | B79: 15 | C79: Mobile Version der Website oder mobile Applikation | D79: 7 | E79: ja/nein
C80: Bewertung | D80: =SUM(D65:D79) -> 105
C81: Durchschnitt | D81: =SUM(D80/B79) -> 7
C83: Kommentar
C86: 2. E-Mail
C88: Beantwortung Ihrer E-Mail Anfrage, | E88: Bewertung | F88: Kommentar
A89: 16 | B89: 1 | C89: Innerhalb … Stunden ab Anfrage (3*S - 12; 4*S - 8; 5*/5*S - 4) | D89: 7 | E89: ja/nein
A90: 17 | B90: 2 | C90: Qualität (Schreibstil, Wortwahl, korrekte Anrede, Rechtsschreibung) | D90: 7 | E90: 1-7
A91: 18 | B91: 3 | C91: Informationsgehalt (z.B. Zusatzangebote) | D91: 7 | E91: 1-7
A92: 19 | B92: 4 | C92: Individuelle Bearbeitung von Sonderanfragen | D92: 7 | E92: 1-7
A93: 20 | B93: 5 | C93: Bei Angebot: Angaben zu Stornobedingungen | D93: 7 | E93: ja/nein
A94: 21 | B94: 6 | C94: Angabe von Zahlungsmodalitäten | D94: 7 | E94: ja/nein
A95: 22 | B95: 7 | C95: Anfahrts-, Wegbeschreibung, öffentliche Anreisemöglichkeiten | D95: 7 | E95: ja/nein
C96: Reservierungs-Bestätigung (E-Mail, Fax) als Antwort auf Ihre Buchung | F96: Kommentar
A97: 23 | B97: 8 | C97: Innerhalb … Stunden ab Reservierung (3*S - 24; 4*S - 12; 5*/5*S - 8) | D97: 7 | E97: ja/nein
A98: 24 | B98: 9 | C98: Qualität (Schreibstil, Wortwahl, korrekte Anrede, Rechtsschreibung) | D98: 7 | E98: 1-7
A99: 25 | B99: 10 | C99: Informationsgehalt (u.a. Aktuelle Anfahrtsbeschreibung) | D99: 7 | E99: 1-7
C100: Bewertung | D100: =SUM(D87:D99) -> 70
C101: Durchschnitt | D101: =SUM(D100/B99) -> 7
C103: Kommentar
C106: 3. Telefon
E107: Bewertung | F107: Kommentar
A108: 26 | B108: 1 | C108: Wartezeit (3*S - 1 Min; 4*S - 30 Sek; 5*/5*S - 15 Sek) | D108: 7 | E108: ja/nein
A109: 27 | B109: 2 | C109: Während der Wartezeit Text- bzw. Tonschleife | D109: 7 | E109: ja/nein
A110: 28 | B110: 3 | C110: Herzlichkeit | D110: 7 | E110: 1-7
A111: 29 | B111: 4 | C111: Klare deutliche Stimme und verständliche Aussprache | D111: 7 | E111: 1-7
A112: 30 | B112: 5 | C112: Anfragebeantwortung auf Deutsch (Rückruf ebenfalls aktzeptabel) | D112: 7 | E112: ja/nein
A113: 31 | B113: 6 | C113: Mit Namen angesprochen | D113: 7 | E113: ja/nein
A114: 32 | B114: 7 | C114: Vollständige Datenaufnahme (z.B. Name, Adresse, Tel, Email-Nachfrage) | D114: 7 | E114: ja/nein
A115: 33 | B115: 8 | C115: Fachliche Kompetenz | D115: 7 | E115: 1-7
A116: 34 | B116: 9 | C116: An- und Abreisedatum wiederholt und bestätigt | D116: 7 | E116: ja/nein
A117: 35 | B117: 10 | C117: Individuelle Bearbeitung von Sonderanfragen | D117: 7 | E117: 1-7
A118: 36 | B118: 11 | C118: Informationen über Check-in-Zeiten | D118: 7 | E118: ja/nein
A119: 37 | B119: 12 | C119: Aktives Anbieten von Zusatzleistungen | D119: 7 | E119: ja/nein
A120: 38 | B120: 13 | C120: Hinweis auf Stornobedingungen bei telefonischer Buchung | D120: 7 | E120: ja/nein
A121: 39 | B121: 14 | C121: Freundliche Verabschiedung und Dank | D121: 7 | E121: 1-7
C122: Bewertung | D122: =SUM(D108:D121) -> 98
C123: Durchschnitt | D123: =SUM(D122/B121) -> 7
C124: Kommentar
C126: 4. Anreise und Außenanlage
E127: Bewertung | F127: Kommentar
A128: 40 | B128: 1 | C128: Auffindbarkeit (z.B. Beschilderung im Ort) | D128: 7 | E128: 1-7
A129: 41 | B129: 2 | C129: Zufahrtsmöglichkeit bis zum Eingang | D129: 7 | E129: ja/nein
A130: 42 | B130: 3 | C130: Park- bzw. Garagenplätze (Zustand, Größe, ausreichende Anzahl etc.) | D130: 7 | E130: 1-7
A131: 43 | B131: 4 | C131: Beleuchtung des gesamten Außenbereichs inkl. Park- bzw. Garagenplätze | D131: 7 | E131: 1-7
A132: 44 | B132: 5 | C132: Gepäckservice | D132: 7 | E132: ja/nein
A133: 45 | B133: 6 | C133: Beschilderung am Haus (z.B. Eingang, Garage, Skikeller etc.) | D133: 7 | E133: 1-7
A134: 46 | B134: 7 | C134: Sauberkeit und Zustand des Gebäudes sowie der Außenanlagen | D134: 7 | E134: 1-7
A135: 47 | B135: 8 | C135: Parkservice (z.B. Doorman, Wagenmeister) | D135: 7 | E135: ja/nein
A136: 48 | B136: 9 | C136: Angebot zur leichteren Ermöglichung der öffentlichen Anreise (z.B. Transfer) | D136: 7 | E136: 1-7
C137: Bewertung | D137: =SUM(D128:D136) -> 63
C138: Durchschnitt | D138: =SUM(D137/B136) -> 7
C140: Kommentar
C143: 5. Check-In
C145: Eingangsbereich & Lobby | E145: Bewertung | F145: Kommentar
A146: 49 | B146: 1 | C146: Raumklima (Geruch) | D146: 7 | E146: 1-7
A147: 50 | B147: 2 | C147: Raumtemperatur | D147: 7 | E147: 1-7
A148: 51 | B148: 3 | C148: Beleuchtung ausreichend und ansprechend | D148: 7 | E148: 1-7
A149: 52 | B149: 4 | C149: Ambiente/Atmosphäre | D149: 7 | E149: 1-7
A150: 53 | B150: 5 | C150: Entsprechend qualitatives Mobiliar | D150: 7 | E150: 1-7
A151: 54 | B151: 6 | C151: Sauberkeit und Ordnung insb. Check-In-Bereich (Front Office) | D151: 7 | E151: ja/nein
A152: 55 | B152: 7 | C152: Stimmige Dekorationen | D152: 7 | E152: 1-7
A153: 56 | B153: 8 | C153: Großzügiger Sitzbereich für Gäste | D153: 7 | E153: ja/nein
C155: Front Office Mitarbeiter | E155: Bewertung | F155: Kommentar
A156: 57 | B156: 9 | C156: Anwesenheit | D156: 7 | E156: ja/nein
A157: 58 | B157: 10 | C157: Begrüßung (z.B. Welcome Drink) | D157: 7 | E157: ja/nein
A158: 59 | B158: 11 | C158: Herzlichkeit, Freundlichkeit | D158: 7 | E158: 1-7
A159: 60 | B159: 12 | C159: Erscheinungsbild Mitarbeiter (z.B. Uniform, Namensschild) | D159: 7 | E159: 1-7
A160: 61 | B160: 13 | C160: Fachkompetenz | D160: 7 | E160: 1-7
A161: 62 | B161: 14 | C161: Fremdsprachenkenntnisse (Deutsch + mind. eine Fremdsprache - ab 3* verpflichtend) | D161: 7 | E161: ja/nein
A162: 63 | B162: 15 | C162: Aufmerksamkeit, Sorgfältigkeit, Hilfsbereitschaft | D162: 7 | E162: 1-7
A163: 64 | B163: 16 | C163: Effizienz (Schnelligkeit, Flexibilität) | D163: 7 | E163: 1-7
A164: 65 | B164: 17 | C164: Klare, gut verständliche Aussprache | D164: 7 | E164: 1-7
A165: 66 | B165: 18 | C165: Gast mit Namen angesprochen | D165: 7 | E165: ja/nein
A166: 67 | B166: 19 | C166: Vorbereiteter Meldezettel | D166: 7 | E166: ja/nein
A167: 68 | B167: 20 | C167: Gepäcksservice angeboten | D167: 7 | E167: ja/nein
A168: 69 | B168: 21 | C168: Begleitung auf das Zimmer angeboten | D168: 7 | E168: ja/nein
A169: 70 | B169: 22 | C169: Allgemeine Haus-Informationen angeboten bzw. gegeben | D169: 7 | E169: ja/nein
A170: 71 | B170: 23 | C170: Angenehmen Aufenthalt gewünscht | D170: 7 | E170: ja/nein
C172: Begleitung zum Zimmer | E172: Bewertung | F172: Kommentar
A173: 72 | B173: 24 | C173: Erscheinungsbild des Mitarbeiters | D173: 7 | E173: 1-7
A174: 73 | B174: 25 | C174: Freundlichkeit, Konversation | D174: 7 | E174: 1-7
C176: Rooming | E176: Bewertung | F176: Kommentar
A177: 74 | B177: 26 | C177: Hinweis auf Hauptschalter (für Strom im Zimmer) | D177: 7 | E177: ja/nein
A178: 75 | B178: 27 | C178: Hinweis auf Heizung oder Klimaanlage | D178: 7 | E178: ja/nein
A179: 76 | B179: 28 | C179: Kommunikationsgerät (z.B. Telefon, Tablet, QR Code) (schriftliche Infos ausreichend) (3*-4* auf Wunsch, 5* auf dem Zimmer) | D179: 7 | E179: ja/nein
A180: 77 | B180: 29 | C180: Telefonverzeichnis bzw. -nummern (für Zimmerservice) - schriftliche Infos ausreichend | D180: 7 | E180: ja/nein
A181: 78 | B181: 30 | C181: Minibar oder Maxibar (bis 4*) (schriftliche Infos ausreichend) | D181: 7 | E181: ja/nein
A182: 79 | B182: 31 | C182: Safe (schriftliche Infos ausreichend) | D182: 7 | E182: ja/nein
A183: 80 | B183: 32 | C183: Wäsche-Service (schriftliche Infos ausreichend) | D183: 7 | E183: ja/nein
A184: 81 | B184: 33 | C184: Bügel-Service (schriftliche Infos ausreichend) | D184: 7 | E184: ja/nein
A185: 82 | B185: 34 | C185: Öffnungszeiten Restaurant, Bar, Sport-/ Erholungs- und/oder Wellnessbereich (schriftliche Infos ausreichend) | D185: 7 | E185: ja/nein
A186: 83 | B186: 35 | C186: Zeitangabe Frühstück (schriftliche Infos ausreichend) | D186: 7 | E186: ja/nein
A187: 84 | B187: 36 | C187: Rezeption 24 Std. erreichbar und … Std. besetzt (3*S - 8 bzw. 10; 4*S - 14; 5*/5*S - 24) | D187: 7 | E187: ja/nein
C188: Bewertung | D188: =SUM(D146:D187) -> 252
C189: Durchschnitt | D189: =SUM(D188/B187) -> 7
C191: Kommentar
C193: 6. Zimmer
C195: Erster Eindruck und Allgemeiner Charakter | E195: Bewertung | F195: Kommentar
A196: 85 | B196: 1 | C196: Raumklima (Frischer Geruch) | D196: 7 | E196: 1-7
A197: 86 | B197: 2 | C197: Angenehme Temperatur | D197: 7 | E197: 1-7
A198: 87 | B198: 3 | C198: Atmosphäre (Wohlfühlcharakter) | D198: 7 | E198: 1-7
A199: 88 | B199: 4 | C199: Geräuschpegel (Ruhe) | D199: 7 | E199: 1-7
A200: 89 | B200: 5 | C200: Entsprechendes Mobiliar | D200: 7 | E200: 1-7
A201: 90 | B201: 6 | C201: Sauberkeit | D201: 7 | E201: 1-7
A202: 91 | B202: 7 | C202: Willkommensbrief/-karte | D202: 7 | E202: ja/nein
A203: 92 | B203: 8 | C203: Willkommensgruß (z.B. Blumen, Obst, Konfekt…) | D203: 7 | E203: ja/nein
A204: 93 | B204: 9 | C204: Türschloss in einwandfreiem Zustand | D204: 7 | E204: ja/nein
C206: Das Bett | E206: Bewertung | F206: Kommentar
A207: 94 | B207: 10 | C207: Dem Hotelstandard angemessen | D207: 7 | E207: ja/nein
A208: 95 | B208: 11 | C208: Qualität der Bettbezüge angemessen | D208: 7 | E208: ja/nein
A209: 96 | B209: 12 | C209: Matratze/Liegekomfort | D209: 7 | E209: 1-7
A210: 97 | B210: 13 | C210: Bettdecken der Jahreszeit angepasst | D210: 7 | E210: ja/nein
A211: 98 | B211: 14 | C211: Zusatzkopfkissen auf Wunsch (kein Zierkissen) | D211: 7 | E211: ja/nein
A212: 99 | B212: 15 | C212: Zusatzdecke auf Wunsch | D212: 7 | E212: ja/nein
A213: 100 | B213: 16 | C213: Zwei Kopfkissen pro Gast (kein Zierkissen) | D213: 7 | E213: ja/nein
A214: 101 | B214: 17 | C214: Auswahl verschiedener Kopfkissen | D214: 7 | E214: ja/nein
A215: 102 | B215: 18 | C215: Allergikerfreundliche Bettwäsche und Einlagen auf Wunsch | D215: 7 | E215: ja/nein
A216: 103 | B216: 19 | C216: Hygienebezüge (Matratzen und/oder Kopfkissen) | D216: 7 | E216: ja/nein
C218: Einrichtung | E218: Bewertung | F218: Kommentar
A219: 104 | B219: 20 | C219: Qualität und Zustand der Vorhänge | D219: 7 | E219: 1-7
A220: 105 | B220: 21 | C220: Verdunkelung mit Vorhängen möglich | D220: 7 | E220: ja/nein
A221: 106 | B221: 22 | C221: Schalter, Steckdosen leicht erreichbar und zugänglich (nicht durch andere Geräte belegt) | D221: 7 | E221: ja/nein
A222: 107 | B222: 23 | C222: Einwandfreie Wände | D222: 7 | E222: 1-7
A223: 108 | B223: 24 | C223: Einwandfreie Beleuchtung | D223: 7 | E223: 1-7
A224: 109 | B224: 25 | C224: Einwandfreie Einrichtung (Mobiliar) | D224: 7 | E224: ja/nein
A225: 110 | B225: 26 | C225: Angemessene Anzahl einheitlicher Kleiderbügel (kein Draht) bis inkl. 3*; verschiedene Bügelarten 4*, 5*; | D225: 7 | E225: ja/nein
A226: 111 | B226: 27 | C226: Geräumige Ablagemöglichkeiten | D226: 7 | E226: ja/nein
A227: 112 | B227: 28 | C227: Geräumige Hängevorrichtung in den Kästen | D227: 7 | E227: ja/nein
A228: 113 | B228: 29 | C228: Ist die permanent Strom führende Steckdose gekennzeichnet? | D228: 7 | E228: ja/nein
A229: 114 | B229: 30 | C229: Ist auf dem Schreibtisch ausreichend Platz für einen Laptop? | D229: 7 | E229: ja/nein
C231: Ausstattung und Services | E231: Bewertung | F231: Kommentar
A232: 115 | B232: 31 | C232: funktionstüchtige Audio- / Multimedia Unterhaltung (z.B. Radio, Streaming-Dienste) | D232: 7 | E232: ja/nein
A233: 116 | B233: 32 | C233: TV-Programme gut eingestellt | D233: 7 | E233: ja/nein
A234: 117 | B234: 33 | C234: Monitor (TV) in für Raumgröße angemessener Größe | D234: 7 | E234: 1-7
A235: 118 | B235: 34 | C235: Kommunikationsgerät mit interner und externer Telefonfunktion (3*-4* auf Wunsch, 5* auf dem Zimmer) | D235: 7 | E235: ja/nein
A236: 119 | B236: 35 | C236: Bedienungsanleitung für das Kommunikationsgerät (ab 5* zweisprachig verpflichtend) | D236: 7 | E236: ja/nein
A237: 120 | B237: 36 | C237: Schreibblock und einem Bleistift neben Telefon | D237: 7 | E237: ja/nein
A238: 121 | B238: 37 | C238: WLAN Internetzugang auf den Zimmern | D238: 7 | E238: ja/nein
A239: 122 | B239: 38 | C239: Druckmöglichkeit auf Wunsch | D239: 7 | E239: ja/nein
A240: 123 | B240: 39 | C240: Einwandfreie Funktionalität aller elektrischen Einrichtungen (z.B. Licht, TV, Fön) | D240: 7 | E240: ja/nein
A241: 124 | B241: 40 | C241: Safe im Zimmer (ab 5* verpflichtend) | D241: 7 | E241: ja/nein
A242: 125 | B242: 41 | C242: "Bitte nicht stören/Bitte aufräumen" Angabemöglichkeit vorhanden | D242: 7 | E242: ja/nein
A243: 126 | B243: 42 | C243: "Bitte nicht aufräumen" (opt-out von Zimmerreinigung) | D243: 7 | E243: ja/nein
A244: 127 | B244: 43 | C244: Aktualität des Infomaterials (gedruckt oder digital) | D244: 7 | E244: ja/nein
A245: 128 | B245: 44 | C245: Sicherheitsbestimmungen (z.B. Brandschutz, Fluchtwege) sichtbar | D245: 7 | E245: ja/nein
A246: 129 | B246: 45 | C246: Aktuelles Medienangebot (Zeitschriften und/oder Magazine - gedruckt oder digital) | D246: 7 | E246: 1-7
A247: 130 | B247: 46 | C247: Zweisprachiger Serviceleitfaden (gedruckt oder digital) | D247: 7 | E247: ja/nein
A248: 131 | B248: 47 | C248: Internationaler Steckdosenadapter, Ladegeräte/Adapter auf Wunsch (z.B. für elektr. Geräte wie Handys, Tabletts...) ab 1* verpflichtend | D248: 7 | E248: ja/nein
A249: 132 | B249: 48 | C249: Pro Bett ein Trinkglas auf Untersetzer (z.B. Serviette) | D249: 7 | E249: ja/nein
A250: 133 | B250: 49 | C250: Angebote in Minibar (Getränke, Snacks - 5* verpflichtend) | D250: 7 | E250: 1-7
A251: 134 | B251: 50 | C251: sind ausreichend Sitzgelegenheiten vorhanden? | D251: 7 | E251: ja/nein
A252: 135 | B252: 51 | C252: Qualität der Sitzgelegeneheiten | D252: 7 | E252: 1-7
A253: 136 | B253: 52 | C253: Getränke im Roomservice mit Getränkekarte (4* - 12h; 5* - 24h) | D253: 7 | E253: 1-7
A254: 137 | B254: 53 | C254: Speisen im Roomservice mit Speisekarte (4* - 12h; 5* - 24h) | D254: 7 | E254: 1-7
A255: 138 | B255: 54 | C255: Frühstückskarte im Roomservice | D255: 7 | E255: ja/nein
A256: 139 | B256: 55 | C256: Wäschereiservice | D256: 7 | E256: ja/nein
A257: 140 | B257: 56 | C257: Bügelservice | D257: 7 | E257: ja/nein
A258: 141 | B258: 57 | C258: Nähservice | D258: 7 | E258: ja/nein
A259: 142 | B259: 58 | C259: Schuhputzservice | D259: 7 | E259: ja/nein
C261: Badezimmer | E261: Bewertung | F261: Kommentar
A262: 143 | B262: 59 | C262: Atmosphäre (Wohlfühlcharakter) | D262: 7 | E262: 1-7
A263: 144 | B263: 60 | C263: Entsprechende Ausstattung | D263: 7 | E263: 1-7
A264: 145 | B264: 61 | C264: Helligkeit | D264: 7 | E264: 1-7
A265: 146 | B265: 62 | C265: Einwandfreie Hygiene und Sauberkeit | D265: 7 | E265: ja/nein
A266: 147 | B266: 63 | C266: Böden in der Dusche/ Wanne aus rutschfestem Material | D266: 7 | E266: ja/nein
A267: 148 | B267: 64 | C267: Einfach handhabbare Wasserhähne | D267: 7 | E267: ja/nein
A268: 149 | B268: 65 | C268: Pro Person ein einwandfreies Zahnputzglas (oder Zahnbürstenhalter) | D268: 7 | E268: ja/nein
A269: 150 | B269: 66 | C269: Mindestens ein qualitativ einwandfreies Handtuch pro Person | D269: 7 | E269: ja/nein
A270: 151 | B270: 67 | C270: Mindestens ein qualitativ einwandfreies Badetuch pro Person | D270: 7 | E270: ja/nein
A271: 152 | B271: 68 | C271: Badvorleger aus Textil | D271: 7 | E271: ja/nein
... 279 more rows

Sheet Tacho ohne Zusatz (hidden)
A1: Segment 1 (rot) | B1: 1
A2: Segment 2 | B2: 1
A3: Segment 3 | B3: 1
A4: Segment 4 | B4: 1
A5: Segment 5 | B5: 1
A6: Segment 6 | B6: 1
A7: Segment 7 (grün) | B7: 1
A8: Unsichtbar | B8: 7
A10: Zeiger | B10: ='ohne Zusatz'!D582 -> 7
A11: Rest | B11: =7-B10 -> 0
A12: Unsichtbar | B12: 7
